{"text_format":"1","workbook":"xlsx","n_sheets":13,"sheets":["Control","Members","Results","Scores-Men","Scores-ladies","Race 1-Men","Race 1-Ladies","Race 2-Men","Race 2-Ladies","Race 3-Men","Race 3-Ladies","Race 4-Men","Race 4-Ladies"],"not_rendered":{"charts":0,"images":0,"macros":1,"external_links":0,"defined_names":2,"comments":0,"pivot_tables":0},"unopened":[],"bounds":{"document_bytes":16777216,"sheet_cells":100000,"rows_first":2000,"rows_last":500,"rows_between":2000,"halvings":0,"cell_chars":16384,"cell_head_chars":4096},"cells_cut":0,"cells_raw":0,"read":"whole","date_system":"1900"}

{"sheet":"Control","index":0,"n_rows":25,"n_cols":34,"rows_kept":25,"cut":false,"hidden":false,"merged":[[0,29,0,33],[13,29,13,33],[0,0,0,9],[0,11,0,20],[0,22,0,24]]}
["Mens",null,null,null,null,null,null,null,null,null,null,"Ladies",null,null,null,null,null,null,null,null,null,null,"Clubs",null,null,null,"Rules - Men",null,null,"Runners - Men"]
[1,21,41,61,81,101,121,141,161,181,null,1,21,41,61,81,101,121,141,161,181,null,"Race","Club","Code",null,"Number of Scoring Runners",8,null,"Club","Race 1","Race 2","Race 3","Race 4"]
[2,22,42,62,82,102,122,142,162,182,null,2,22,42,62,82,102,122,142,162,182,null,1,"Ware Joggers","WJ",null,"Number of Veterans",2,null,{"$f":"X3","v":"Ware Joggers"},28,22,28,32]
[3,23,43,63,83,103,123,143,163,183,null,3,23,43,63,83,103,123,143,163,183,null,2,"Bishop's Stortford","BS",null,"Number of 2nd Claim Scorers",2,null,{"$f":"X4","v":"Bishop's Stortford"},27,15,18,13]
[4,24,44,64,84,104,124,144,164,184,null,4,24,44,64,84,104,124,144,164,184,null,3,"Saffron Striders","SS",null,null,null,null,{"$f":"X5","v":"Saffron Striders"},19,20,24,9]
[5,25,45,65,85,105,125,145,165,185,null,5,25,45,65,85,105,125,145,165,185,null,4,"Harlow Running & Tri Club","HRC",null,"Rules - Ladies",null,null,{"$f":"X6","v":"Harlow Running & Tri Club"},17,19,20,18]
[6,26,46,66,86,106,126,146,166,186,null,6,26,46,66,86,106,126,146,166,186,null,5,null,null,null,"Number of Scoring Runners",8,null,{"$f":"X7","v":0},0,0,0,0]
[7,27,47,67,87,107,127,147,167,187,null,7,27,47,67,87,107,127,147,167,187,null,6,null,null,null,"Number of Veterans",2]
[8,28,48,68,88,108,128,148,168,188,null,8,28,48,68,88,108,128,148,168,188,null,7,null,null,null,"Number of 2nd Claim Scorers",2]
[9,29,49,69,89,109,129,149,169,189,null,9,29,49,69,89,109,129,149,169,189,null,8]
[10,30,50,70,90,110,130,150,170,190,null,10,30,50,70,90,110,130,150,170,190,null,9,null,null,null,"Penalty for Incomplete team"]
[11,31,51,71,91,111,131,151,171,191,null,11,31,51,71,91,111,131,151,171,191,null,10,null,null,null,"Men",82]
[12,32,52,72,92,112,132,152,172,192,null,12,32,52,72,92,112,132,152,172,192,null,null,null,null,null,"Ladies",64]
[13,33,53,73,93,113,133,153,173,193,null,13,33,53,73,93,113,133,153,173,193,null,null,null,null,null,null,null,null,"Runners - Ladies"]
[14,34,54,74,94,114,134,154,174,194,null,14,34,54,74,94,114,134,154,174,194,null,null,"Race Number",4,null,null,null,null,"Club","Race 1","Race 2","Race 3","Race 4"]
[15,35,55,75,95,115,135,155,175,195,null,15,35,55,75,95,115,135,155,175,195,null,null,null,null,null,null,null,null,{"$f":"X3","v":"Ware Joggers"},23,32,33,19]
[16,36,56,76,96,116,136,156,176,196,null,16,36,56,76,96,116,136,156,176,196,null,null,null,null,null,null,null,null,{"$f":"X4","v":"Bishop's Stortford"},8,20,18,11]
[17,37,57,77,97,117,137,157,177,197,null,17,37,57,77,97,117,137,157,177,197,null,null,null,null,null,null,null,null,"Saffron Striders",14,8,10,6]
[18,38,58,78,98,118,138,158,178,198,null,18,38,58,78,98,118,138,158,178,198,null,null,null,"                                                                                                                                                                                                                                  ",null,null,null,null,"Harlow Running & Tri Club",17,13,17,18]
[19,39,59,79,99,119,139,159,179,199,null,19,39,59,79,99,119,139,159,179,199,null,null,null,null,null,null,null,null,0,0,0,0,0]
[20,40,60,80,100,120,140,160,180,200,null,20,40,60,80,100,120,140,160,180,200]
[]
[null,null,null,null,null,null,null,null,null,null,null,null,null,null,null,null,null,null,null,null,null,null,null,"Age Categories"]
[null,null,null,null,null,null,null,null,null,null,null,null,null,null,null,null,null,null,null,null,null,null,null,"Men","S","V40","V50","V60","V70"]
[null,null,null,null,null,null,null,null,null,null,null,null,null,null,null,null,null,null,null,null,null,null,null,"Ladies","S","V35","V45","V55","V65"]

{"sheet":"Members","index":1,"n_rows":507,"n_cols":11,"rows_kept":507,"cut":false,"hidden":false,"merged":[]}
["Name","Club","Age Category","Claim","Finish Position",null,"Name","Club","Age Category","Claim","Finish Position"]
["Adam Chapman","BS","V40",1,null,null,"Aileen Lewis","BS","V55",1]
["Alan Findlay","BS","V50",1,null,null,"Alex Warrington","BS","V55",1]
["Alasdair Bruce","BS","V50",1,null,null,"Alison Chadwick","BS","S",1]
["Alec Felstead","BS","V70",1,null,null,"Alison Malcolm","BS","V45",1]
["Andrew Dawes","BS","V40",1,null,null,"Amanda Brown","BS","V45",1]
["Andrew Enticknap","BS",null,1,null,null,"Amanda Edwards","BS","V45",1]
["Andrew Farmery","BS","S",1,null,null,"Andrea Thorpe","BS","V45",1,18]
["Andrew Pooley","BS","V40",1,null,null,"Anna Collins","BS","Unknown",1]
["Andrew Scraggs","BS","MS",1,null,null,"Annabelle Caley","BS","S",1]
["Andrew Wilson","BS","V50",1,null,null,"Anne Gauld-Clark","BS","V65",1]
["Anthony Kirby","BS","V40",1,null,null,"Bekah Cranch","BS","S",1]
["Antony Welden","BS","V40",1,null,null,"Beverley Small","BS","Unknown",1]
["Archie Gilbey","BS","S",1,null,null,"Catherine Howard","BS","V45",1]
["Ashish Tiwari","BS","S",1,null,null,"Cathy Dutta","BS","V55",1]
["Barry Taylor","BS","V40",2,null,null,"Ceri Margerison","BS","Unknown",1]
["Ben Dean","BS","V40",1,null,null,"Charlotte Saunderson","BS","V35",1]
["Ben Levinson","BS","V40",1,null,null,"Charu Dayama","BS","V35",1]
["Ben Pickford","BS","V40",1,16,null,"Chloe Atkinson","BS","V35",1]
["Brian Sullivan","BS","V50",1,null,null,"Chloe Boyce","BS","V35",1]
["Carl Waring","BS","V60",1,null,null,"Chloe Niemiec","BS","S",1]
["Chris Allan","BS","V50",1,null,null,"Ciara Norman","BS","S",1]
["Chris Brolly","BS","V60",1,null,null,"Claire Boylan","BS","V45",1]
["Chris Chew","BS","V50",1,43,null,"Claire Fields","BS","V45",1]
["Chris Rowe","BS","V50",1,null,null,"Claire Neal","BS","V45",1]
["Craig Dodgen","BS","V50",1,null,null,"Claire Nicholson","BS","S",1]
["Dan Palmer","BS","S",1,null,null,"Clare Gallagher","BS","V35",1]
["Daniel Beazley","BS","V40",1,null,null,"Clare Masterson","BS","V35",1]
["Daniel Brayshaw","BS","V40",1,null,null,"Colette Kerins","BS","V45",1]
["Daniel Hume","BS","V40",1,null,null,"Corinna Rowe","BS","V55",1]
["Daryl Savage","BS","S",1,null,null,"Danielle Sims","BS","V45",1]
["Dave Rogers","BS","V40",1,null,null,"Deirdre Walton","BS","V55",1]
["David Broughton","BS","V40",1,null,null,"Eilidh Malcom","BS","S",1]
["David Cody","BS","V40",1,null,null,"Eleanor Mason","BS","S",1]
["David McMillan","BS","V50",1,null,null,"Eleanor Rodgers","BS","V45",1]
["David Rutter","BS","V50",1,null,null,"Eleanor Williams","BS","V45",1]
["Dawid Szulc","BS","S",1,null,null,"Elizabeth Bellinger","BS","V35",1,5]
["Dean Aylott","BS","S",1,null,null,"Ellen Brooks","BS","V35",1,34]
["Derek Williams","BS","V60",1,null,null,"Emily Clancey","BS","S",1]
["Dominic Mason","BS","V50",1,34,null,"Emma Carrington","BS","Unknown",1]
["Dominic Prout","BS",null,1,null,null,"Emma Nixon","BS","V55",1,32]
["Elliott Warrington","BS","S",1,null,null,"Erin Clements","BS","S",1]
["Ernesto Johnson","BS","V50",1,null,null,"Fay Dodgen","BS","V45",1,51]
["Gary Jones","BS","V50",1,30,null,"Fay Humphries","BS","S",1]
["George Thomas","BS","V70",1,null,null,"Fiona Butterfield","BS","V35",1]
["George Thorpe","BS","S",1,null,null,"Fiona Liddell","BS","V55",1]
["Glen Malcolm","BS","V50",1,null,null,"Frances Iwaschkin","BS","V35",1]
["Gordon Wilson","BS","V60",1,null,null,"Francesca Palmer","BS","V45",1]
["Graham O'Malley","BS","V60",1,null,null,"Gemma McKenna","BS","V35",1]
["Graham Statter","BS","V60",1,null,null,"Georgia Norman","BS","S",1]
["Graham Willson","BS","V50",1,null,null,"Grace Malcolm","BS","S",1]
["Henry Ward","BS","S",1,28,null,"Greta Lyons","BS","V55",1]
["Ian Griffiths","BS","V40",1,null,null,"Hannah Cox","BS","V35",1]
["Ian McClymont","BS","V70",1,null,null,"Harriet Wyatt","BS","V55",1]
["Ian Penson","BS","V50",1,69,null,"Hayley Bishop","BS","V35",1]
["Jack Simcox","BS","S",1,null,null,"Helen Hollingsworth","BS","V45",1]
["James Delve","BS","V40",1,null,null,"Jane Malone","BS","V45",1]
["Jason Haigh","BS","V50",1,null,null,"Jane Mansfield","BS","V45",1]
["Jason Hasty","BS","V50",1,null,null,"Janet Howes","BS","V65",1]
["Jerry Piron","BS","V60",1,null,null,"Janine Lahr","BS","V35",1]
["Jess Melville","BS","V40",1,null,null,"Janna Jenkins","BS","V35",1]
["John Appleby","BS","V50",1,null,null,"Jenny Brayshaw","BS","V65",1]
["John Baker","BS","V70",1,null,null,"Jenny Latham","BS","V35",1]
["John Dodsworth","BS","V50",1,null,null,"Jilly Palmer","BS","V55",1,48]
["John Earley","BS","V50",1,null,null,"Jo Neal","BS","V55",1]
["John Etherden","BS","V70",1,null,null,"Joanna Arscott","BS","V35",1]
["John Ivens","BS","V60",1,null,null,"Joanna Jurd","BS","V35",1,9]
["John Kennedy","BS","V50",1,null,null,"Joanne Hume","BS","V45",1]
["John Wright","BS","V40",1,null,null,"Joanne Thompson","BS","V45",1]
["Jonathan Haynes","BS","V60",1,null,null,"Julia Fonnereau","BS","V55",1]
["Justin Patten","BS","V50",1,null,null,"Julie Pagram","BS","V45",1,21]
["Keir Mann","BS","S",1,null,null,"Julie Rogers","BS","V55",1]
["Keith Duncan","BS","V50",1,null,null,"Julie Witchalls","BS","V45",1]
["Kenneth Sortwell","BS","V60",1,null,null,"Karen Roddam","BS","V45",1]
["Kevin Gillespie","BS","V50",1,null,null,"Kathryn Chapman","BS","V45",1]
["Kevin Marshall","BS","V50",1,null,null,"Katie Little","BS","S",1]
["Kevin Mully","BS","V40",1,null,null,"Kirsty Reid","BS","V35",1]
["Laurence Foote","BS","V40",1,null,null,"Lara Wheeldon","BS","V45",1]
["Laurence Lee","BS","V50",1,null,null,"Linda Burton","BS","V55",1]
["Lee Boswell","BS","S",1,null,null,"Lisa Collier-Smith","BS","V45",1]
["Lee Kirby","BS","V40",1,null,null,"Lorraine Evans","BS","V55",1]
["Lee Pickering","BS","V50",1,null,null,"Louise Baker","BS","V55",1]
["Les Thurston","BS","V70",1,null,null,"Lucy Northedge","BS","V35",1]
["Liam Dillon","BS","V40",1,null,null,"Lucy Robinson","BS","V35",1]
["Liam Sheils","BS","V40",1,null,null,"Lydia Burdett","BS","V35",1]
["Luke Shepherd","BS","S",1,null,null,"Madeleine Sullivan","BS","S",1]
["Malcolm Dewhurst","BS","V60",1,null,null,"Mairead Wright","BS","V35",1]
["Mark Booker","BS","V50",1,null,null,"Mairi Malcolm","BS","S",1]
["Mark Burkett","BS","V50",1,null,null,"Marie Boulton","BS","V35",1]
["Mark Lawrence","BS","S",1,null,null,"Marie Fisk","BS","Unknown",1]
["Mark Palmer","BS","V40",1,null,null,"Marie Hockley","BS","V55",1]
["Mark Spiller","BS","S",1,null,null,"Marsha Day","BS","V35",1]
["Mark Tilley","BS","V50",1,null,null,"Mary Augustine","BS","V65",1]
["Mark Wilds","BS","V50",1,null,null,"Megan Strach","BS","S",1]
["Martin Brooks","BS","S",1,null,null,"Meryl Herniman","BS","V35",1]
["Martin Cockerell","BS","V40",1,null,null,"Michaela Boulton","BS","V45",1]
["Martin Collier-Smith","BS","V50",1,null,null,"Michelle Hasty","BS","V45",1]
["Martin Pettitt","BS","V60",1,null,null,"Michelle Jolley","BS","V55",1]
["Matt McRandal","BS","S",1,26,null,"Monika Simonaityte","BS","S",1]
["Matthew Coaker","BS","V40",1,null,null,"Naomi Ghosh","BS","V45",1]
["Matthew Cole","BS","V40",1,null,null,"Natalie Taylor","BS","V35",1]
["Matthew Ironside","BS","S",1,14,null,"Natasha Evans","BS","V45",1]
["Matthieu Militon","BS","V40",1,65,null,"Natasha Spiller","BS","V35",1]
["Melvyn Grinwood","BS","V40",1,null,null,"Natasha Watson","BS","Unknown",1]
["Michael Connolly","BS","V50",1,null,null,"Neen Kavanagh","BS","V45",1]
["Michael Toomey","BS","V60",1,null,null,"Neve Dearlove","BS","S",1]
["Mike Grant","BS","V50",1,null,null,"Nick Smith","BS","V35",1]
["Nick Sloan","BS","V50",1,null,null,"Nicola Cockerell","BS","V35",1]
["Nick Yeadon","BS","V50",1,null,null,"Nicola Hunt","BS","V45",1]
["Oliver Last","BS","V50",1,47,null,"Nicola Tilley","BS","V45",1]
["Owen Bailey","BS","V40",1,null,null,"Niki Champion","BS","V45",1,44]
["Owen Parker","BS","S",1,null,null,"Olivia Beresford","BS","S",1]
["Paul Dearlove","BS","V50",1,null,null,"Patriciah Kariuki","BS","V45",1]
["Paul Kerins","BS","V50",1,null,null,"Paula Beades","BS","V45",1]
["Paul Malone","BS","V40",1,null,null,"Paulina Surbltye","BS","S",1]
["Paul Scofield","BS","V40",1,null,null,"Peijie Zhu","BS","V45",1]
["Pekka Aalto","BS","S",1,null,null,"Rachael Fletcher","BS","V45",1]
["Peter Allen","BS","V60",1,null,null,"Rachel Turvey","BS","V45",1]
["Peter Beatty","BS","V60",1,37,null,"Rebecca Cole","BS","V35",1]
["Peter Jurd","BS","V40",1,null,null,"Rebecca Thorp","BS","V35",1]
["Peter Rowe","BS","V50",1,null,null,"Robinne Colby","BS","V55",1]
["Peter Wenzel","BS","V70",1,null,null,"Rosemary Nugent","BS","V65",1]
["Peter Winfield","BS",null,1,null,null,"Ruby Featherstone","BS","S",1]
["Philip Butson","BS","V50",1,null,null,"Sally House","BS","V55",1]
["Philip Chaplin","BS","V50",2,null,null,"Samantha Heaton","BS","Unknown",1]
["Philip Gibsone","BS","V40",1,null,null,"Sarah Godfrey","BS","V35",1]
["Phillip Mansfield","BS","V50",1,null,null,"Sarah Mackay","BS","V35",1,40]
["Quentin Downes","BS",null,1,null,null,"Sarah Porter","BS","V45",1]
["Ray Webster","BS","V50",1,null,null,"Sarah Webber","BS","V55",1]
["Richard Eddershaw","BS","V50",1,36,null,"Selina Walkley","BS","V45",1]
["Richard Phillipson","BS",null,1,null,null,"Serena Beresford","BS","V35",1]
["Robert Johnson","BS","S",1,null,null,"Sharon Andrews","BS","V45",1]
["Robert Thorpe","BS","V50",1,null,null,"Shelley Davies","BS","V55",1]
["Robin Newman","BS","V40",1,null,null,"Shirley Ball","BS","V65",1]
["Roger Berry","BS","V40",1,null,null,"Sophie Barc","BS","V35",1]
["Rohit Dayama","BS","V40",1,null,null,"Sophie Evans","BS","V35",1]
["Ryan Gow","BS","S",1,null,null,"Stacey Smith","BS","V35",1]
["Sam Greatrex","BS","V40",1,null,null,"Stefanie Azuga","BS","V45",1]
["Samuel Howe","BS","S",1,null,null,"Susan Anderson","BS","V35",1]
["Samuel Mascarenhas","BS",null,1,null,null,"Susan Tidman","BS","V45",1]
["Samuel Pedley","BS","S",1,3,null,"Susannah Keogh","BS","Unknown",1]
["Shane Tomlinson","BS","V40",1,null,null,"Theresa Burke","BS","V65",1]
["Simon Dewhurst","BS","S",1,null,null,"Tracy Holmes","BS","Unknown",1]
["Simon Ellice","BS","V40",1,null,null,"Trudy Lynch","BS","V45",1]
["Simon Judkins","BS","V40",1,null,null,"Vanessa Hale","BS","V45",1]
["Simon Latham","BS","V60",1,null,null,"Vicky Simpson","BS","V45",1]
["Simon Wallace","BS","V40",1,null,null,"Victoria Maddox","BS","V35",1]
["Stephen Ball","BS","V60",1,null,null,"Zoë Burnet","BS","V45",1]
["Stephen Berry","BS","V40",1,null,null,"Alison Bull","HRC","V45",1]
["Stephen Crafford","BS","V50",1,null,null,"Alison Wilkinson","HRC","V45",1]
["Stephen Price","BS","S",1,null,null,"Allison Beeton","HRC","V45",1]
["Stephen Wilkes","BS","V40",1,null,null,"Amanda Martin-Hose","HRC","S",1]
["Steven Prosser","BS","V40",1,null,null,"Amber Ingle","HRC","S",1]
["Steven Vale","BS","V50",1,null,null,"Angela Cook","HRC","V55",1]
["Stuart Davenport","BS","V50",1,null,null,"Annabel Moeser","HRC","S",1]
["Themi Petridis","BS","V40",1,null,null,"Antonella Crudgington","HRC","V45",1]
["Theo Clowes","BS",null,1,null,null,"Bethany Drake","HRC","S",1]
["Thomas Castle","BS","V40",1,null,null,"Brenda Clayton","HRC","V65",1]
["Thomas Wilton","BS","MS",1,null,null,"Carinne Jay","HRC","V55",1]
["Tim Kelly","BS","V60",1,null,null,"Carmen Byfield","HRC","V45",1]
["Toby Allanson","BS","V40",1,null,null,"Catherine Ridge","HRC","V35",1,6]
["Tom Lee","BS","S",1,null,null,"Charleen Tillotson","HRC","V35",1]
["Tommj Fanton","BS","S",1,null,null,"Claire Carter","HRC","V45",1]
["Tony Chada","BS","V50",1,null,null,"Claire Morris","HRC","V35",1]
["Trevor Brown","BS","V40",1,null,null,"Dawn Elford","HRC","V35",1]
["Wayne Greet","BS","V50",1,null,null,"Debbie Barry","HRC","V55",1]
["Will Hunt Vincent","BS","V50",1,null,null,"Debbie Cooper","HRC","V45",1]
["Will Morton","BS","S",1,null,null,"Debbie Smith","HRC","V55",1]
["William Bell","BS","S",1,null,null,"Deborah Garfield","HRC","V45",2]
["Adam Galloway","HRC","S",1,null,null,"Debra Monk","HRC","V55",1]
["Alan Chatterton","HRC","S",1,null,null,"Donna Milton","HRC","V45",1]
["Alan Cootes","HRC","V60",1,64,null,"Elizabeth Roberts","HRC","S",1,49]
["Alan Knightley","HRC","V50",1,null,null,"Elle Curran","HRC","S",1]
["Alan Wellbelove","HRC","V60",1,75,null,"Emma Thompson","HRC","V45",1]
["Alexis Ellington","HRC","V40",1,42,null,"Eva Lenicka","HRC","V35",1]
["Andrew Kinney","HRC","V50",1,null,null,"Fieke Blackwell","HRC","S",1,10]
["Andrew Smith","HRC","V50",1,null,null,"Francesca Ryde","HRC","S",2]
["Andrew Terrell","HRC","V40",1,null,null,"Gail Nicholls","HRC","V55",1,30]
["Andrew Warwick","HRC","S",1,null,null,"Gemma Armsden","HRC","V40",1]
["Austin Nyamande","HRC","V60",1,null,null,"Hannah Wenlock","HRC","V35",1]
["Ben Fowler","HRC","V40",1,null,null,"Harriett Martin","HRC","S",1]
["Benjamin Usher","HRC","S",1,29,null,"Heidi Fox","HRC","V35",1]
["Bobby Draper","HRC","V50",1,53,null,"Helen Barnes-Martin","HRC","V45",1]
["Bradley Holmes","HRC","S",1,null,null,"Helen Barrell","HRC","S",1]
["Chris Arnell","HRC","V40",1,48,null,"Helen Goodman","HRC","V35",1]
["Chris Talbot","HRC","V50",1,null,null,"Holly Nairn","HRC","S",1]
["Christopher Donnelly","HRC","V40",1,null,null,"Iwona Antolik","HRC","V45",1]
["Christopher McCarthy","HRC","V40",1,null,null,"Jane Evans","HRC","V55",1]
["Colin Baker","HRC","V40",1,null,null,"Janice Page","HRC","V55",1]
["Colin Langbridge","HRC","S",1,null,null,"Jayne Mouser","HRC","V45",1]
["Colin Moody","HRC","V70",1,null,null,"Jessica Carter","HRC","S",1]
["Dan Finch","HRC","V40",1,null,null,"Jessica Thomas","HRC","S",1]
["Daniel Jephcott","HRC","S",1,null,null,"Joanne Mills","HRC","V65",1]
["Daniel Winter","HRC","V40",1,null,null,"Joy Hale","HRC","V35",1]
["Darren Coates","HRC","V50",1,null,null,"Judy Ward","HRC","V65",1]
["Darren Rautenbach","HRC","V40",1,null,null,"Julia Gardiner","HRC","V35",1]
["Darren Tiley","HRC","V50",1,null,null,"Julie Bradley","HRC","V55",1]
["Dave Smith","HRC","V40",1,null,null,"Julie Bull","HRC","V45",1]
["David Goosetree","HRC","V40",1,null,null,"Julie Ireland","HRC","V55",1]
["David Johnson","HRC","V50",1,null,null,"Karen Middleditch","HRC","V55",1]
["David Page","HRC","V50",1,null,null,"Karen Moir","HRC","V55",1]
["David Spears","HRC","V50",1,null,null,"Kate Babb","HRC","V55",1,41]
["Dean Bull","HRC","V50",1,null,null,"Kate Porter","HRC","V45",1]
["Dominic Emery","HRC","V50",1,null,null,"Kathrine Foy","HRC","S",1]
["Garrick Cathrall","HRC","S",1,null,null,"Katie Duggin","HRC","S",1]
["Gary Mead","HRC","V40",1,63,null,"Kelly Spires","HRC","V45",1]
["Graham Saville","HRC","V60",1,null,null,"Keren Greenall","HRC","V35",1]
["Hossein Erfani","HRC","V70",1,null,null,"Kerry Mavris","HRC","V45",1,23]
["Howard Gaines","HRC","V50",1,null,null,"Laura Atkinson","HRC","S",1]
["Iain Bulloch","HRC","V40",1,null,null,"Laura Prime","HRC","V45",1,38]
["Jack Shury","HRC","S",1,null,null,"Laura Rowlett","HRC","S",1]
["Jack Waight","HRC","S",1,null,null,"Linda Helm-Manley","HRC","V55",1,22]
["Jacobus Van Der Poel","HRC","V60",1,null,null,"Lisa Brett","HRC","V45",1,50]
["James Dowsett","HRC","V40",1,null,null,"Liz Coxall","HRC","V45",1]
["James Hay","HRC","S",1,null,null,"Lizzie Wright","HRC","V45",1]
["James Keys-kidd","HRC","S",1,null,null,"Lorraine Berry","HRC","V35",1]
["James Martin","HRC","V50",1,null,null,"Louise Cootes","HRC","V35",1,20]
["Jamie Jephcott","HRC","V50",1,null,null,"Louise Kedge","HRC","V35",1]
["Jason Fox","HRC","V50",1,null,null,"Louise Shury","HRC","V45",1]
["Jason Fryer","HRC","V50",1,null,null,"Lucy Barnes","HRC","S",1,1]
["Jason Pite","HRC","V40",1,null,null,"Luella Dixon","HRC","V55",1]
["Jason Ready","HRC","V50",1,null,null,"Mandie Roberts","HRC","V45",1]
["Jeff Mace","HRC","V40",1,null,null,"Martine Beard","HRC","V35",1]
["Jermaine Shand","HRC","S",1,null,null,"Melanie Harris","HRC","V55",1]
["Jim Bates","HRC","V70",1,null,null,"Michele Weber","HRC","V55",1]
["Joe Dainty","HRC","V50",1,null,null,"Michelle Hyde","HRC","V35",1]
["John Bull","HRC","V50",1,58,null,"Michelle Sheridan","HRC","V35",1,43]
["John Edwards","HRC","V40",1,null,null,"Millie McGovern","HRC","S",1]
["John Gifford","HRC","S",1,null,null,"Nadine Bedi","HRC","V45",1]
["John McCarthy","HRC","V40",1,null,null,"Natasha Terrell","HRC","V45",1]
["John Tennant","HRC","V70",1,null,null,"Nicola Court","HRC","V45",1]
["Jon Steadman","HRC","V40",1,40,null,"Nicola Smith","HRC","V35",1]
["Jon Waight","HRC","V50",1,null,null,"Nicola Wix","HRC","V45",1]
["Jordan Best","HRC","S",1,null,null,"Paige Bircham","HRC","S",1,19]
["Josh Shelton","HRC","S",1,null,null,"Pat O'Flaherty","HRC","V55",1]
["Keith Streeter","HRC","V50",1,null,null,"Paula Miles","HRC","V45",1]
["Kem Kemal","HRC","S",1,null,null,"Paulene Galoppi","HRC","V65",1]
["Kevin Peacock","HRC","V40",1,null,null,"Pauline Weirich","HRC","V45",1]
["Kirk Crudgington","HRC","V40",1,22,null,"Pushpa Mistry","HRC","V55",1]
["Laurence Maddock","HRC","S",1,null,null,"Ruth Stapleton","HRC","V35",1]
["Lee Daniels","HRC","S",1,null,null,"Samantha Meynell","HRC","S",1]
["Lee Walker","HRC","S",1,null,null,"Sandra Rust","HRC","V45",1,15]
["Lee Webber","HRC","V40",1,null,null,"Sandra Webber","HRC","V35",1]
["Leigh Brown","HRC","V40",1,null,null,"Sandra Westgate","HRC","V45",1,45]
["Luke Healy","HRC","S",1,null,null,"Sara Coombe","HRC","V45",1]
["Luke Howard","HRC","S",1,null,null,"Sarah Carman","HRC","S",1]
["Marc Witham","HRC","V40",1,null,null,"Sarah Gainsford","HRC","V55",1]
["Mark Bentley","HRC","V50",1,74,null,"Sarah Medlock","HRC","V35",1]
["Mark Unwin","HRC","V40",1,55,null,"Sarah Walker","HRC","S",1]
["Martin Westley","HRC","S",1,25,null,"Selina Morgan","HRC","V35",1,46]
["Martyn Langman","HRC","S",1,null,null,"Simone Leitch","HRC","V45",1]
["Matthew Spires","HRC","V40",1,null,null,"Siobhan Coster","HRC","V35",1]
["Michael Casey","HRC","V60",1,null,null,"Susan Maloney","HRC","V55",1]
["Michael Gleeson","HRC","V40",1,null,null,"Susan Reilly","HRC","V45",1]
["Michael Gornall","HRC","V60",1,null,null,"Tania Lewis","HRC","S",1]
["Michael Houlihan","HRC","V50",1,null,null,"Tanya Cotter","HRC","V35",1]
["Michael Robey","HRC","V40",1,null,null,"Terasa Holden","HRC","V45",1]
["Michael Woodruff","HRC","V50",1,null,null,"Teresa Stickland","HRC","V55",1,47]
["Mick Maddams","HRC","V40",1,null,null,"Teresa Warren","HRC","V55",1]
["Miguel Luque","HRC","V50",1,57,null,"Terri Wiley","HRC","S",1,3]
["Nadeem Ghani","HRC","V50",1,null,null,"Tracy Greenall","HRC","V45",1]
["Neil Goodgame","HRC","V40",1,null,null,"Tracy Stratford","HRC","V35",1]
["Nick Burnage","HRC","V50",1,null,null,"Vanessa Murray","HRC","V45",1]
["Nick D'Alton","HRC","V50",1,null,null,"Vicky Steadman","HRC","V45",1]
["Nick Davies","HRC","V40",1,null,null,"Wendy Hunt","HRC","V45",1]
["Nick Goff","HRC","V50",1,null,null,"Yasmin Gregory","HRC","V55",1]
["Nick Ryley-warren","HRC","S",1,null,null,"Anna Bell","SS","V35",1]
["Nigel Barton","HRC","V40",1,null,null,"Anna Cooper","SS","S",1]
["Nigel Hunt","HRC","V40",1,null,null,"Anna Kotowska","SS","S",1]
["Noel Thatcher","HRC","V50",1,null,null,"Anne Dawson","SS","V35",1]
["Paskell Blackwell","HRC","V40",1,9,null,"Beccy Howe","SS","V45",1]
["Pasquale Pellecchia","HRC","V70",1,null,null,"Carmen McWilliams-Cervera","SS","V55",1]
["Paul Dixon","HRC","V50",1,null,null,"Carolyn Gamble","SS","V35",1]
["Paul Lawes","HRC","V50",1,null,null,"Charlie Gibbs","SS","S",1]
["Paul Smith","HRC","V50",1,null,null,"Charlotte Diggins","SS","V45",1]
["Paul Watts","HRC","V50",1,null,null,"Charlotte Teall","SS","V35",1,31]
["Peter Berry","HRC","V40",1,null,null,"Chloe Brown","SS","V55",1]
["Peter Mills","HRC","V70",1,null,null,"Cindy Drinnan","SS","V35",1]
["Rangwedi Sello","HRC","V40",1,null,null,"Claire Jarvis Just","SS","V35",1]
["Reginald Gifford","HRC","V60",1,null,null,"Claire Steel","SS","V35",1]
["Richard Fryer","HRC","V50",1,null,null,"Clare Little","SS","V45",1]
["Richard Ricketts","HRC","V50",1,null,null,"Coral White","SS","S",1]
["Rob Lowe","HRC","V50",1,8,null,"Debbie Todd","SS","V45",1]
["Rob Peters","HRC","V40",1,null,null,"Eleanor Bailey","SS","V45",1]
["Robert Foxley","HRC","V40",1,null,null,"Elena Jeremy","SS","S",1]
["Robert Scott","HRC","V40",1,null,null,"Elizabeth Blake","SS","V35",1]
["Robin Lozeau","HRC","V60",1,null,null,"Ellie Clarke","SS","S",1]
["Ron Newton","HRC","V60",1,null,null,"Elodie Paviot","SS","V35",1]
["Roy Steven","HRC","V70",1,null,null,"Emily Look","SS","S",1]
["Ryan Smith","HRC","V40",1,null,null,"Evie Haugh","SS","S",1]
["Salvatore Maggiulli","HRC","V60",1,null,null,"Fiona Halls","SS","V45",1]
["Sam Carter","HRC","V40",1,null,null,"Fliss Tournant","SS","S",1]
["Sam Nicholls","HRC","S",1,null,null,"Flo Greatrix","SS","S",1]
["Sean Flynn","HRC","V60",1,70,null,"Gill Sarginson","SS","V55",1]
["Shane Szkutnik","HRC","S",1,null,null,"Gina Holley","SS","V45",1]
["Simon Morgans","HRC","V40",1,null,null,"Hayley Attridge","SS","V55",1]
["Stephen Foley","HRC","S",1,null,null,"Helen Howard","SS","V45",1]
["Stephen Leahy","HRC","V50",1,null,null,"Helen Marks","SS","V55",1]
["Stephen Mayo","HRC","V40",1,null,null,"Isabel M. Ornelas","SS","V35",1]
["Steve Arkell","HRC","V40",1,null,null,"Issie Grayson","SS","V65",1]
["Steve Warren","HRC","V60",1,null,null,"Jacqueline Haxton","SS","V45",1]
["Steve Wright","HRC","V50",1,null,null,"Jacqueline Lucas","SS","V55",1]
["Steven Cowlin","HRC","V60",1,null,null,"Jacqui Gardiner","SS","V45",1]
["Stuart Saville","HRC","S",1,null,null,"Janet Lipski","SS","V55",1]
["Terry Ridge","HRC","S",1,null,null,"Jenn Flores","SS","S",1]
["Thomas Beales","HRC","V40",1,null,null,"Jennifer Tomlinson","SS","V45",1]
["Tom Stevens","HRC","V40",1,null,null,"Jenny Start","SS","V45",1]
["Tom Wheatley","HRC","S",1,null,null,"Jo Dallas","SS","V55",1]
["Tony Harman","HRC","V50",1,null,null,"Judith Marrinan","SS","V55",1]
["Tony McGovern","HRC","V50",1,null,null,"Julie Hartle","SS","V55",1]
["Tony Russell","HRC","S",1,null,null,"June Brennan","SS","V65",1,37]
["Vincent Martin","HRC","V60",1,null,null,"Karen Sheldon","SS","V45",1]
["Alan Gleaves","SS","V40",1,null,null,"Karen Tait","SS","V45",1]
["Alan Jones","SS","V50",1,54,null,"Kate Holden","SS","V55",1,26]
["Alex Ros","SS","V50",1,null,null,"Kate Poulter","SS","V45",1]
["Alex Smith","SS","S",1,null,null,"Kate Waite","SS","S",1]
["Alistair Cooke","SS","V40",1,null,null,"Kathryne Gill","SS","V45",1]
["Andrew Armour","SS","V40",1,null,null,"Katie Pieri","SS","V35",1]
["Andrew Flind","SS","V50",1,null,null,"Katie Wise","SS","V35",1]
["Andrew Jacklin","SS","S",1,null,null,"Kay Phillips","SS","V55",1]
["Andrew Page","SS","V40",1,null,null,"Kerry Harrington","SS","V45",1]
["Andrew White","SS","V50",1,null,null,"Kim Hirst","SS","V35",1]
["Andy Watkins","SS","V40",1,null,null,"Laura Plumb","SS","V35",1]
["Archie Ruggles-Brise","SS","V40",1,null,null,"Lili Pluck","SS","V45",1]
["Arnold Sienerth","SS","V40",1,null,null,"Linda Brett","SS","V55",1]
["Arthur Oliva","SS","V50",1,null,null,"Lindsay Seth","SS","V35",1]
["Barry Taylor","SS","V40",1,null,null,"Lisa Plumb","SS","V45",1,39]
["Ben Wright","SS","S",1,61,null,"Lorraine Chedzoy","SS","V45",1]
["Charles Coutts","SS","S",1,null,null,"Louisa Pimblett","SS","S",1]
["Chris Brown","SS","V40",1,null,null,"Lucie Heanley","SS","V35",1]
["Chris Dodge","SS","V50",1,null,null,"Lucy Coston","SS","S",1]
["Chris Outtersides","SS","V40",1,null,null,"Mafalda Cooke","SS","S",1]
["Chris Shucksmith","SS","S",1,null,null,"Marcia Aislabie","SS","V45",1]
["Christopher Wilding","SS","S",1,null,null,"Margit Wendelberger James","SS","V55",1]
["Craig Dyce","SS","V50",1,null,null,"Marianne Naylor","SS","V35",1]
["Daniel Vaughan","SS","V40",1,null,null,"Martha Flind","SS","S",1]
["Darren Barnes","SS","V40",1,null,null,"Maxine Frazer","SS","V55",1]
["David Bulmer","SS","V40",1,null,null,"Melanie Hallam","SS","V45",1]
["David Martin","SS","V40",1,39,null,"Melissa Sangha","SS","V45",1]
["David Raimondo","SS","V40",1,null,null,"Meredith Higginson","SS","S",1]
["David Tew","SS","V60",1,null,null,"Michaela Hil","SS","S",1]
["Eddie Copeland","SS","S",1,null,null,"Millie Mathieson","SS","V55",1]
["Edward Benyon","SS","V40",1,null,null,"Millie Rowlandson","SS","S",1]
["Ewen Kellar","SS","V50",1,null,null,"Nadia Marson","SS","V45",1]
["Graeme Loudain","SS","V60",1,null,null,"Nikola Coutts","SS","V45",1]
["Guy Taylor","SS","S",1,null,null,"Olivia Head","SS","S",1]
["Guy Tremayne","SS","V50",2,null,null,"Paula Thurston","SS","V45",1]
["Harry Game","SS","S",1,null,null,"Phily Watson","SS","S",1]
["Iain Henley","SS","V40",1,13,null,"Rachael Pearson","SS","V35",1,36]
["Iain Rogers","SS","V50",1,62,null,"Rachel Cornell","SS","V45",1]
["Ian Christopher Scott","SS","V50",1,null,null,"Rachel Miller","SS","V35",1]
["Ian MacDougall","SS","V60",1,null,null,"Rebecca Doe","SS","V45",1]
["James Rye","SS","V40",1,null,null,"Rebecca White","SS","V35",1]
["Jason Coles","SS","V50",1,null,null,"Rosemarie Slade","SS","S",1]
["Joe Hall","SS","V50",1,null,null,"Sadie Grinyer-Crane","SS","V35",1]
["Joel Markham","SS","S",1,null,null,"Sally Hutchinson","SS","S",1]
["John Heanley","SS","V40",1,null,null,"Sally Taffinder","SS","V55",1]
["John James","SS","V60",1,null,null,"Samantha Pollard","SS","V35",1]
["Jon Boyd","SS","S",1,null,null,"Sarah Sansom","SS","S",1]
["Jon Cooke","SS","V50",1,null,null,"Sarah Shucksmith","SS","V35",1]
["Jonathan Wileman","SS","S",1,null,null,"Shani Lewis","SS","V45",1]
["Jonathan Wilkie","SS","V40",1,null,null,"Siobhan Gibson","SS","V55",1]
["Joshua Entwistle","SS","S",2,null,null,"Sue Hayden","SS","V45",1]
["Justin James","SS","V50",1,null,null,"Susan Grant","SS","V55",1]
["Kevin Foote","SS","V40",1,null,null,"Tamara Lamb","SS","V55",1]
["Kiran Barv?","SS","V50",1,null,null,"Tina Hamilton","SS","V45",1]
["Larry Seligman","SS","V40",1,null,null,"Trish Cooke","SS","V45",1]
["Lee Gamble","SS","V40",1,null,null,"Valerie Foreman","SS","V35",1]
["Lewis Elmes","SS","S",1,null,null,"Vicky Reed","SS","V45",1]
["Marc Daynes","SS","V40",1,null,null,"Victoria Cutler","SS","V45",1]
["Marco Arcidiacono","SS","V50",1,35,null,"Vivienne Prentice","SS","V55",1]
["Mark Anderton","SS","V40",1,null,null,"Wendy MacDougall","SS","V55",1]
["Mark Coutts","SS","V40",1,null,null,"Zib Gotto","SS","V45",1,13]
["Mark Fitzhenry","SS","V60",1,null,null,"Anne Ramsden","WJ","V65",1]
["Mark Frow","SS","S",1,null,null,"Anthea Francis","WJ","V45",1,17]
["Mark Thackstone","SS","V50",1,null,null,"Asta Neely","WJ","V35",1]
["Martin Gouldstone","SS","V50",1,null,null,"Beverley McLees","WJ","V45",1,11]
["Martin Green","SS","V40",1,null,null,"Carla Bell","WJ","V55",1]
["Matthew Billis","SS","V40",1,null,null,"Carol Hayward","WJ","V55",1]
["Matthew Smith","SS","V50",1,null,null,"Caroline Reardon","WJ","V35",1]
["Matthew Switzer","SS","S",1,null,null,"Caroline Stephens","WJ","V55",1]
["Mayank Seth","SS","V40",1,null,null,"Cate Camany","WJ","V55",1]
["Michael Bradley","SS","V50",1,73,null,"Christel Ainge","WJ","V45",1]
["Michael Cooke","SS","V50",1,null,null,"Christy van Maanenberg","WJ","V45",1]
["Neil Halls","SS","V40",1,null,null,"Claire Bruce","WJ","S",1]
["Niall Sullivan","SS","V40",1,null,null,"Claire Watson","WJ","V45",1]
["Nick Clarke","SS","S",1,null,null,"Claron Riviere","WJ","V65",1,54]
["Nick White","SS","V40",1,null,null,"Cosette Ackland","WJ","V45",1]
["Nick Wilkinson","SS","V40",1,null,null,"Diane Naman","WJ","V65",1]
["Nigel Appleby","SS","V60",1,null,null,"Elizabeth Lord","WJ","V65",1]
["Nigel Coates","SS","V60",1,44,null,"Elizabeth Watson","WJ","V65",1]
["Nigel Poad","SS","V50",1,null,null,"Emily Crisp","WJ","S",1]
["Oliver Diggins","SS","V40",1,null,null,"Emily REID","WJ","V35",1]
["Patrick Bickerton","SS","V40",1,null,null,"Emma Mulley","WJ","V35",1]
["Paul Johnstone","SS","S",1,null,null,"Fiona Alder","WJ","V55",1]
["Paul Long","SS","V50",1,66,null,"Fiona Smith","WJ","S",1,33]
["Pieter de Koning","SS","V50",1,null,null,"Gemma Charville","WJ","V35",1]
["Richard Auty","SS","V40",1,null,null,"Jacki Clifford","WJ","V45",1]
["Richard Balarkas","SS","V60",1,50,null,"Jacqui Barnard","WJ","V55",1]
["Richard Slade","SS","S",1,null,null,"Jane Wren","WJ","V55",1,24]
["Russell Peters","SS","V40",1,null,null,"Janet Readitt","WJ","V55",1]
["Russell Sanford","SS","V40",1,null,null,"Jaqueline Gelman","WJ","V65",1]
["Samuel Schiebel","SS","S",1,null,null,"Jeanette Collins","WJ","V55",1]
["Sean Holbrok","SS","V40",1,null,null,"Jennifer Evans","WJ","S",1]
["Simon Chambers","SS","V50",1,null,null,"Jessica Baxter","WJ","V35",1]
["Simon Cole","SS","V50",1,null,null,"Jill Patel","WJ","V45",1]
["Simon Crossley","SS","V50",1,null,null,"Jo Gladding","WJ","V35",1,8]
["Simon Ede","SS","V40",1,null,null,"Judy Sillitto","WJ","V55",1]
["Simon Ollerensha","SS","V50",1,null,null,"Julie Fogg","WJ","V55",1]
["Stephen Hillyard","SS","V50",1,null,null,"Katie Blacker","WJ","V45",1]
["Stephen Inkley","SS","V60",1,null,null,"Katrina Dobson","WJ","V35",1,12]
["Steven Foster","SS","V40",1,null,null,"Katy Woodward","WJ","V35",1,2]
["Stuart Frankland","SS","S",1,null,null,"Kimberly Mangleshot","WJ","V45",1,35]
["Stuart Gibson","SS","V50",1,null,null,"Louise Oliver","WJ","V45",1]
["Thomas Roelleke","SS","V50",1,null,null,"Lucy Dupuis","WJ","V45",1,16]
["Tim McMahon","SS","V40",1,null,null,"Lynsay Evans","WJ","V45",1,52]
["Tim Penn","SS","V70",1,null,null,"Margaret Waddingham","WJ","V65",1]
["Tim Tait","SS","V40",1,null,null,"Marianne Mitchell","WJ","V45",1,7]
["Tim Wilkinson","SS","V40",1,null,null,"Maureen Hurt","WJ","V55",1]
["Toby Lumbsden","SS","V60",1,41,null,"Mel Farnes","WJ","V35",1]
["Tom Rowley","SS","V40",1,null,null,"Melanie Blackaby","WJ","V45",1]
["Tony Bacon","SS","S",1,null,null,"Michelle Cross","WJ","V55",1]
["Tony Kelly","SS","V60",2,null,null,"Natalie Thornton","WJ","V45",1]
["Yusuf Firat","SS","V50",2,null,null,"Olu Gooden","WJ","V55",1]
["Adam Bruce","WJ","S",1,null,null,"Pamela Wilson","WJ","V65",1,29]
["Adam Watson","WJ","S",1,31,null,"Paula Gollop","WJ","V35",1]
["Alan Rafferty","WJ","V60",1,67,null,"Rachel Symonds","WJ","V35",1]
["Alan Randall","WJ","V50",1,59,null,"Rebecca Drinkwater","WJ","V45",1]
["Alan Taylor","WJ","V50",1,52,null,"Rhonda Moon","WJ","V45",1]
["Andy Kavanagh","WJ","S",1,32,null,"Rosalind Hitchen","WJ","V55",1,53]
["Andy Tait","WJ","S",1,null,null,"Sam Rowe","WJ","V55",1,27]
["Barry O'Connor","WJ","V40",1,null,null,"Sarah Berry","WJ","V35",1]
["Ben Beckwith","WJ","S",1,null,null,"Sarah Hopewell","WJ","V35",1,14]
["Benjamin Ashman","WJ","S",1,null,null,"Sharon Threlfall","WJ","V45",1]
["Brian Smith","WJ","V70",1,null,null,"Sue Millward","WJ","V45",1]
["Clive Smith","WJ","V60",1,null,null,"Sue Taylor","WJ","V45",1]
["Colin Naman","WJ","V70",1,null,null,"Teresa Weedon","WJ","V55",1]
["Craig Basham","WJ","V40",1,null,null,"Tina Clark","WJ","V35",1]
["Frank O'Shea","WJ","V70",1,null,null,"Tracy Brennan","WJ","V45",1,42]
["Garth Morris","WJ","V60",1,20,null,"Val Stringer","WJ","V65",1]
["Hugo Wilson","WJ","S",1,null,null,"Vibeke Rowe","WJ","V65",1]
["Iain McMurray","WJ","S",1,17,null,"Wendy Reddaway","WJ","V55",1]
["Jack Oliver","WJ","V40",1,null,null,"Zeph Brand","WJ","V35",1]
["James Randall","WJ","S",1,null,null,"Sue Fracer","WJ","S",1]
["James Reed","WJ","V40",1,null,null,"Debbie Amies","WJ","V45",1]
["Jamie Higgs","WJ","V40",1,19,null,"Jenny Venter","WJ","V65",1]
["Jason Champion","WJ","V40",1,null,null,"Lorna Crump","HRC","V35",1]
["John Butcher","WJ","V70",1,null,null,"Gemma Curran","HRC","S",1]
["John Hair","WJ","V50",1,49,null,"Georgia Gadsdon","HRC","S",1]
["Jon Williams","WJ","S",1,null,null,"Nicolette Harley","HRC","V45",1]
["Kevin Francis","WJ","V40",1,5,null,"Debbie Hayden","HRC","V35",1]
["Kevin Sambridge","WJ","V40",1,null,null,"Victoria Jory","HRC","V35",1]
["Laurence Watson","WJ","V70",1,null,null,"Claire Sage","HRC","S",1]
["Lee Hembling","WJ","S",1,15,null,"Maria Sassons","HRC","V45",1]
["Luke White","WJ","V50",1,null,null,"Harriet Kealy","WJ","S",null,4]
["Mark Cyl","WJ","V50",1,60,null,"Emily Warrington","BS","S",1,28]
["Mark Ford","WJ","S",1,11,null,"Lisa Roberts","WJ","V45",1,25]
["Mark Sanz","WJ","V50",1,38]
["Martin Sillitto","WJ","V60",1]
["Matt Brown","WJ","S",1,12]
["Michael Hoddinott","WJ","V50",1]
["Michael Waddington","WJ","S",1,1]
["Neil Bull","WJ","V40",1,21]
["Nicholas Egginton","WJ","V40",1,18]
["Nick Cheal","WJ","V60",1]
["Nick Kenyon-Muir","WJ","V50",1]
["Nick Sansom","WJ","V40",1]
["Oliver Bain","WJ","S",1]
["Pascal McManmon","WJ","V60",1,71]
["Paul Brennan","WJ","V50",1]
["Paul Cocklin","WJ","V60",1]
["Paul Heuvelmans","WJ","V40",1]
["Paul Reddaway","WJ","V60",1]
["Peter Baker","WJ","V60",1,56]
["Phil Cunningham","WJ","V70",1]
["Phil Hudson","WJ","V60",1]
["Richard Coffey","WJ","V50",1]
["Richard van Maanenberg","WJ","V50",1]
["Robert Ohara","WJ","S",1]
["Robert Waddingham","WJ","V60",1]
["Roger Partridge","WJ","V60",1]
["Roy Stringer","WJ","V70",1]
["Russell Cook","WJ","S",1]
["Simon Joyce","WJ","V50",1,68]
["Stephen Tingley","WJ","V50",1]
["Steve Charles","WJ","V50",1]
["Terry Nichols","WJ","V70",1]
["Tim Brignall","WJ","S",1]
["Tom Porter","WJ","S",1,6]
["Vincent Riviere","WJ","V40",1,10]
["Wayne Baxter","WJ","V40",1]
["Will Breese","WJ","S",1,7]
["Ian Perrins","WJ","S",1]
["Johnny Nichols","WJ","S",1,23]
["Andy Biggs","WJ","V40",1,45]
["Matt Earl","WJ","V40",1,51]
["Peter Keats","WJ","V60",1]
["Freddie Cooke","SS","S",1]
["Martyn Coulter","HRC","S",1,24]
["Mark Grant","HRC","V50",1]
["Richard Taylor","HRC","V50",1]
["Samuel Treadwell","HRC","S",1]
["Oscar Bell","WJ","S",1,2]
["Andrew Mynott","WJ","V40",1,4]
["Will Caunce","WJ","S",1,27]
["Paul Martin","WJ","V40",1,33]
["Matthew Stephens","WJ","S",1,72]

{"sheet":"Results","index":2,"n_rows":33,"n_cols":7,"rows_kept":33,"cut":false,"hidden":false,"merged":[]}
[null,"Mens Score"]
[null,"Club","Race 1","Race 2","Race 3","Race 4","Total"]
[null,{"$f":"Control!AD3","v":"Ware Joggers"},89,62,77,46,{"$f":"SUM(C3:F3)","v":274}]
[null,{"$f":"Control!AD4","v":"Bishop's Stortford"},119,114,131,187,{"$f":"SUM(C4:F4)","v":551}]
[null,{"$f":"Control!AD5","v":"Saffron Striders"},194,210,192,337,{"$f":"SUM(C5:F5)","v":933}]
[null,{"$f":"Control!AD6","v":"Harlow Running & Tri Club"},258,219,210,199,{"$f":"SUM(C6:F6)","v":886}]
[null,{"$f":"Control!AD7","v":0},808,688,800,656,{"$f":"SUM(C7:F7)","v":2952}]
[]
[]
[]
[]
[]
[]
[null,"Ladies Score"]
[null,"Club","Race 1","Race 2","Race 3","Race 4","Total"]
[null,{"$f":"Control!AD16","v":"Ware Joggers"},93,97,76,74,{"$f":"SUM(C16:F16)","v":340}]
[null,{"$f":"Control!AD17","v":"Bishop's Stortford"},182,107,146,187,622]
[null,{"$f":"Control!AD18","v":"Saffron Striders"},172,276,235,310,993]
[null,{"$f":"Control!AD19","v":"Harlow Running & Tri Club"},142,146,149,96,533]
[null,{"$f":"Control!AD20","v":0},576,664,704,512,2456]
[]
[]
[]
[]
[]
[]
[null,"Overall Score"]
[null,"Club","Race 1","Race 2","Race 3","Race 4","Total"]
[null,{"$f":"B16","v":"Ware Joggers"},{"$f":"C3+C16","v":182},159,153,120,{"$f":"SUM(C29:F29)","v":614}]
[null,{"$f":"B17","v":"Bishop's Stortford"},301,221,277,374,1173]
[null,{"$f":"B18","v":"Saffron Striders"},366,486,427,647,1926]
[null,{"$f":"B19","v":"Harlow Running & Tri Club"},400,365,359,295,1419]
[null,{"$f":"B20","v":0},1384,1352,1504,1168,5408]

{"sheet":"Scores-Men","index":3,"n_rows":0,"n_cols":0,"rows_kept":0,"cut":false,"hidden":true,"merged":[]}

{"sheet":"Scores-ladies","index":4,"n_rows":0,"n_cols":0,"rows_kept":0,"cut":false,"hidden":true,"merged":[]}

{"sheet":"Race 1-Men","index":5,"n_rows":93,"n_cols":40,"rows_kept":93,"cut":false,"hidden":false,"merged":[]}
["Overall",null,null,null,null,null,"Ware Joggers",null,null,null,null,null,null,"Bishop's Stortford",null,null,null,null,null,null,"Saffron Striders",null,null,null,null,null,null,"Harlow Running & Tri Club"]
["Name","Club","Age Category","Claim","Position",null,"Name","Club","Age Category","Claim","Position",null,null,"Name","Club","Age Category","Claim","Position",null,null,"Name","Club","Age Category","Claim","Position",null,null,"Name","Club","Age Category","Claim","Position",null,null,"Name","Club","Age Category","Claim","Position"]
["Michael Waddington","WJ","S",1,1,null,"Michael Waddington","WJ","S",1,1,1,null,"Samuel Pedley","BS","S",1,3,3,null,"Joshua Entwistle","SS","S",2,2,2,null,"Rob Lowe","HRC","V50",1,7,7]
["Joshua Entwistle","SS","S",2,2,null,"Kevin Francis","WJ","V40",1,4,4,null,"Themi Petridis","BS","V40",1,6,6,null,"Nick White","SS","V40",1,5,5,null,"Paskell Blackwell","HRC","V40",1,13,13]
["Samuel Pedley","BS","S",1,3,null,"Iain McMurray","WJ","S",1,8,8,null,"Steven Prosser","BS","V40",1,9,9,null,"Iain Henley","SS","V40",1,11,11,null,"Martin Westley","HRC","S",1,17,17]
["Kevin Francis","WJ","V40",1,4,null,"Will Breese","WJ","S",1,10,10,null,"Peter Jurd","BS","V40",1,14,14,null,"David Raimondo","SS","V40",1,24,24,null,"Lee Webber","HRC","V40",1,30,30]
["Nick White","SS","V40",1,5,null,"Matt Brown","WJ","S",1,12,12,null,"Mark Lawrence","BS","MS",1,15,15,null,"Tony Bacon","SS","S",1,32,32,null,"Mark Bentley","HRC","V50",1,40,40]
["Themi Petridis","BS","V40",1,6,null,"Nicholas Egginton","WJ","V40",1,16,16,null,"Matthew Ironside","BS","S",1,19,19,null,"Marco Arcidiacono","SS","V50",1,36,36,null,"Andrew Terrell","HRC","V40",1,42,42]
["Rob Lowe","HRC","V50",1,7,null,"Paul Reddaway","WJ","V60",1,18,18,null,"Matt McRandal","BS","S",1,26,26,null,"Alan Jones","SS","V50",1,41,41,null,"Jamie Jephcott","HRC","V50",1,52,52]
["Iain McMurray","WJ","S",1,8,null,"Jamie Higgs","WJ","V40",1,20,20,null,"Ben Pickford","BS","V40",1,27,27,null,"Tim McMahon","SS","V40",1,43,43,null,"Chris Arnell","HRC","V40",1,57,57]
["Steven Prosser","BS","V40",1,9,null,"Mark Ford","WJ","S",1,21,null,null,"George Thorpe","BS","S",1,28,null,null,"Nigel Coates","SS","V60",1,45,null,null,"Jason Fox","HRC","V50",1,60]
["Will Breese","WJ","S",1,10,null,"Andy Tait","WJ","S",1,22,null,null,"Robert Thorpe","BS","V50",1,29,null,null,"Toby Lumbsden","SS","V60",1,49,null,null,"Miguel Luque","HRC","V50",1,69]
["Iain Henley","SS","V40",1,11,null,"Neil Bull","WJ","V40",1,23,null,null,"Dominic Mason","BS","V50",1,31,null,null,"Mark Thackstone","SS","V50",1,54,null,null,"Alan Cootes","HRC","V60",1,73]
["Matt Brown","WJ","S",1,12,null,"Garth Morris","WJ","V60",1,25,null,null,"Matthew Cole","BS","V40",1,33,null,null,"David Martin","SS","V40",1,59,null,null,"Sean Flynn","HRC","V60",1,74]
["Paskell Blackwell","HRC","V40",1,13,null,"Adam Watson","WJ","S",1,34,null,null,"Jason Haigh","BS","V50",1,35,null,null,"Neil Halls","SS","V40",1,64,null,null,"John Tennant","HRC","V70",1,75]
["Peter Jurd","BS","V40",1,14,null,"Andy Kavanagh","WJ","S",1,39,null,null,"Kevin Marshall","BS","V50",1,37,null,null,"Andrew Page","SS","S",1,67,null,null,"Gary Mead","HRC","V40",1,78]
["Mark Lawrence","BS","MS",1,15,null,"Mark Sanz","WJ","V50",1,51,null,null,"Richard Eddershaw","BS","V50",1,38,null,null,"Stuart Gibson","SS","V50",1,68,null,null,"Jacobus Van Der Poel","HRC","V60",1,84]
["Nicholas Egginton","WJ","V40",1,16,null,"Alan Taylor","WJ","V50",1,53,null,null,"Matthew Coaker","BS","V40",1,44,null,null,"Arthur Oliva","SS","V50",1,70,null,null,"Tony Harman","HRC","V50",1,87]
["Martin Westley","HRC","S",1,17,null,"James Randall","WJ","S",1,56,null,null,"Chris Chew","BS","V50",1,46,null,null,"Graeme Loudain","SS","V60",1,72,null,null,"Ron Newton","HRC","V60",1,90]
["Paul Reddaway","WJ","V60",1,18,null,"Richard van Maanenberg","WJ","V50",1,58,null,null,"Gary Jones","BS","V50",1,47,null,null,"Paul Long","SS","V50",1,83]
["Matthew Ironside","BS","S",1,19,null,"Peter Baker","WJ","V60",1,61,null,null,"William Bell","BS","S",1,48,null,null,"Michael Bradley","SS","V50",1,85]
["Jamie Higgs","WJ","V40",1,20,null,"Richard Coffey","WJ","V50",1,62,null,null,"Andrew Enticknap","BS",null,1,50]
["Mark Ford","WJ","S",1,21,null,"Steve Charles","WJ","V50",1,63,null,null,"Matthieu Militon","BS","V40",1,55]
["Andy Tait","WJ","S",1,22,null,"John Hair","WJ","V50",1,65,null,null,"Mark Palmer","BS","V40",1,66]
["Neil Bull","WJ","V40",1,23,null,"Alan Randall","WJ","V50",1,71,null,null,"Paul Dearlove","BS","V50",1,79]
["David Raimondo","SS","V40",1,24,null,"Michael Hoddinott","WJ","V50",1,76,null,null,"Lee Pickering","BS","V50",1,81]
["Garth Morris","WJ","V60",1,25,null,"Clive Smith","WJ","V60",1,77,null,null,"Ian Penson","BS","V50",1,82]
["Matt McRandal","BS","S",1,26,null,"Simon Joyce","WJ","V50",1,80,null,null,"Alan Findlay","BS","V50",1,88]
["Ben Pickford","BS","V40",1,27,null,"Roger Partridge","WJ","V60",1,86,null,null,"Simon Latham","BS","V60",1,91]
["George Thorpe","BS","S",1,28,null,"Colin Naman","WJ","V70",1,89]
["Robert Thorpe","BS","V50",1,29]
["Lee Webber","HRC","V40",1,30]
["Dominic Mason","BS","V50",1,31,null,"Senior",null,null,null,null,null,null,"V40",null,null,null,null,null,null,"V50",null,null,null,null,null,null,"V60",null,null,null,null,null,null,"V70"]
["Tony Bacon","SS","S",1,32,null,"Name","Club","Age Category","Claim","Overall Position","Category Position",null,"Name","Club","Age Category","Claim","Overall Position","Category Position",null,"Name","Club","Age Category","Claim","Overall Position","Category Position",null,"Name","Club","Age Category","Claim","Overall Position","Category Position",null,"Name","Club","Age Category","Claim","Overall Position","Category Position"]
["Matthew Cole","BS","V40",1,33,null,"Michael Waddington","WJ","S",1,1,1,null,"Kevin Francis","WJ","V40",1,4,1,null,"Rob Lowe","HRC","V50",1,7,1,null,"Paul Reddaway","WJ","V60",1,18,1,null,"John Tennant","HRC","V70",1,75,1]
["Adam Watson","WJ","S",1,34,null,"Joshua Entwistle","SS","S",2,2,2,null,"Nick White","SS","V40",1,5,2,null,"Robert Thorpe","BS","V50",1,29,2,null,"Garth Morris","WJ","V60",1,25,2,null,"Colin Naman","WJ","V70",1,89,2]
["Jason Haigh","BS","V50",1,35,null,"Samuel Pedley","BS","S",1,3,3,null,"Themi Petridis","BS","V40",1,6,3,null,"Dominic Mason","BS","V50",1,31,3,null,"Nigel Coates","SS","V60",1,45,3]
["Marco Arcidiacono","SS","V50",1,36,null,"Iain McMurray","WJ","S",1,8,4,null,"Steven Prosser","BS","V40",1,9,4,null,"Jason Haigh","BS","V50",1,35,4,null,"Toby Lumbsden","SS","V60",1,49,4]
["Kevin Marshall","BS","V50",1,37,null,"Will Breese","WJ","S",1,10,5,null,"Iain Henley","SS","V40",1,11,5,null,"Marco Arcidiacono","SS","V50",1,36,5,null,"Peter Baker","WJ","V60",1,61,5]
["Richard Eddershaw","BS","V50",1,38,null,"Matt Brown","WJ","S",1,12,6,null,"Paskell Blackwell","HRC","V40",1,13,6,null,"Kevin Marshall","BS","V50",1,37,6,null,"Graeme Loudain","SS","V60",1,72,6]
["Andy Kavanagh","WJ","S",1,39,null,"Martin Westley","HRC","S",1,17,7,null,"Peter Jurd","BS","V40",1,14,7,null,"Richard Eddershaw","BS","V50",1,38,7,null,"Alan Cootes","HRC","V60",1,73,7]
["Mark Bentley","HRC","V50",1,40,null,"Matthew Ironside","BS","S",1,19,8,null,"Nicholas Egginton","WJ","V40",1,16,8,null,"Mark Bentley","HRC","V50",1,40,8,null,"Sean Flynn","HRC","V60",1,74,8]
["Alan Jones","SS","V50",1,41,null,"Mark Ford","WJ","S",1,21,9,null,"Jamie Higgs","WJ","V40",1,20,9,null,"Alan Jones","SS","V50",1,41,9,null,"Clive Smith","WJ","V60",1,77,9]
["Andrew Terrell","HRC","V40",1,42,null,"Andy Tait","WJ","S",1,22,10,null,"Neil Bull","WJ","V40",1,23,10,null,"Chris Chew","BS","V50",1,46,10,null,"Jacobus Van Der Poel","HRC","V60",1,84,10]
["Tim McMahon","SS","V40",1,43,null,"Matt McRandal","BS","S",1,26,11,null,"David Raimondo","SS","V40",1,24,11,null,"Gary Jones","BS","V50",1,47,11,null,"Roger Partridge","WJ","V60",1,86,11]
["Matthew Coaker","BS","V40",1,44,null,"George Thorpe","BS","S",1,28,12,null,"Ben Pickford","BS","V40",1,27,12,null,"Mark Sanz","WJ","V50",1,51,12,null,"Ron Newton","HRC","V60",1,90,12]
["Nigel Coates","SS","V60",1,45,null,"Tony Bacon","SS","S",1,32,13,null,"Lee Webber","HRC","V40",1,30,13,null,"Jamie Jephcott","HRC","V50",1,52,13,null,"Simon Latham","BS","V60",1,91,13]
["Chris Chew","BS","V50",1,46,null,"Adam Watson","WJ","S",1,34,14,null,"Matthew Cole","BS","V40",1,33,14,null,"Alan Taylor","WJ","V50",1,53,14]
["Gary Jones","BS","V50",1,47,null,"Andy Kavanagh","WJ","S",1,39,15,null,"Andrew Terrell","HRC","V40",1,42,15,null,"Mark Thackstone","SS","V50",1,54,15]
["William Bell","BS","S",1,48,null,"William Bell","BS","S",1,48,16,null,"Tim McMahon","SS","V40",1,43,16,null,"Richard van Maanenberg","WJ","V50",1,58,16]
["Toby Lumbsden","SS","V60",1,49,null,"James Randall","WJ","S",1,56,17,null,"Matthew Coaker","BS","V40",1,44,17,null,"Jason Fox","HRC","V50",1,60,17]
["Andrew Enticknap","BS",null,1,50,null,"Andrew Page","SS","S",1,67,18,null,"Matthieu Militon","BS","V40",1,55,18,null,"Richard Coffey","WJ","V50",1,62,18]
["Mark Sanz","WJ","V50",1,51,null,null,null,null,null,null,null,null,"Chris Arnell","HRC","V40",1,57,19,null,"Steve Charles","WJ","V50",1,63,19]
["Jamie Jephcott","HRC","V50",1,52,null,null,null,null,null,null,null,null,"David Martin","SS","V40",1,59,20,null,"John Hair","WJ","V50",1,65,20]
["Alan Taylor","WJ","V50",1,53,null,null,null,null,null,null,null,null,"Neil Halls","SS","V40",1,64,21,null,"Stuart Gibson","SS","V50",1,68,21]
["Mark Thackstone","SS","V50",1,54,null,null,null,null,null,null,null,null,"Mark Palmer","BS","V40",1,66,22,null,"Miguel Luque","HRC","V50",1,69,22]
["Matthieu Militon","BS","V40",1,55,null,null,null,null,null,null,null,null,"Gary Mead","HRC","V40",1,78,23,null,"Arthur Oliva","SS","V50",1,70,23]
["James Randall","WJ","S",1,56,null,null,null,null,null,null,null,null,null,null,null,null,null,null,null,"Alan Randall","WJ","V50",1,71,24]
["Chris Arnell","HRC","V40",1,57,null,null,null,null,null,null,null,null,null,null,null,null,null,null,null,"Michael Hoddinott","WJ","V50",1,76,25]
["Richard van Maanenberg","WJ","V50",1,58,null,null,null,null,null,null,null,null,null,null,null,null,null,null,null,"Paul Dearlove","BS","V50",1,79,26]
["David Martin","SS","V40",1,59,null,null,null,null,null,null,null,null,null,null,null,null,null,null,null,"Simon Joyce","WJ","V50",1,80,27]
["Jason Fox","HRC","V50",1,60,null,null,null,null,null,null,null,null,null,null,null,null,null,null,null,"Lee Pickering","BS","V50",1,81,28]
["Peter Baker","WJ","V60",1,61,null,null,null,null,null,null,null,null,null,null,null,null,null,null,null,"Ian Penson","BS","V50",1,82,29]
["Richard Coffey","WJ","V50",1,62,null,null,null,null,null,null,null,null,null,null,null,null,null,null,null,"Paul Long","SS","V50",1,83,30]
["Steve Charles","WJ","V50",1,63,null,null,null,null,null,null,null,null,null,null,null,null,null,null,null,"Michael Bradley","SS","V50",1,85,31]
["Neil Halls","SS","V40",1,64,null,null,null,null,null,null,null,null,null,null,null,null,null,null,null,"Tony Harman","HRC","V50",1,87,32]
["John Hair","WJ","V50",1,65,null,null,null,null,null,null,null,null,null,null,null,null,null,null,null,"Alan Findlay","BS","V50",1,88,33]
["Mark Palmer","BS","V40",1,66]
["Andrew Page","SS","S",1,67]
["Stuart Gibson","SS","V50",1,68]
["Miguel Luque","HRC","V50",1,69]
["Arthur Oliva","SS","V50",1,70]
["Alan Randall","WJ","V50",1,71]
["Graeme Loudain","SS","V60",1,72]
["Alan Cootes","HRC","V60",1,73]
["Sean Flynn","HRC","V60",1,74]
["John Tennant","HRC","V70",1,75]
["Michael Hoddinott","WJ","V50",1,76]
["Clive Smith","WJ","V60",1,77]
["Gary Mead","HRC","V40",1,78]
["Paul Dearlove","BS","V50",1,79]
["Simon Joyce","WJ","V50",1,80]
["Lee Pickering","BS","V50",1,81]
["Ian Penson","BS","V50",1,82]
["Paul Long","SS","V50",1,83]
["Jacobus Van Der Poel","HRC","V60",1,84]
["Michael Bradley","SS","V50",1,85]
["Roger Partridge","WJ","V60",1,86]
["Tony Harman","HRC","V50",1,87]
["Alan Findlay","BS","V50",1,88]
["Colin Naman","WJ","V70",1,89]
["Ron Newton","HRC","V60",1,90]
["Simon Latham","BS","V60",1,91]

{"sheet":"Race 1-Ladies","index":6,"n_rows":64,"n_cols":40,"rows_kept":64,"cut":false,"hidden":false,"merged":[]}
["Overall",null,null,null,null,null,"Ware Joggers",null,null,null,null,null,null,"Bishop's Stortford",null,null,null,null,null,null,"Saffron Striders",null,null,null,null,null,null,"Harlow Running & Tri Club"]
["Name","Club","Age Category","Claim","Position",null,"Name","Club","Age Category","Claim","Position",null,null,"Name","Club","Age Category","Claim","Position",null,null,"Name","Club","Age Category","Claim","Position",null,null,"Name","Club","Age Category","Claim","Position",null,null,"Name","Club","Age Category","Claim","Position"]
["Fliss Tournant","SS","S",1,1,null,"Katy Woodward","WJ","V35",1,2,2,null,"Kathryn Chapman","BS","V45",1,3,3,null,"Fliss Tournant","SS","S",1,1,1,null,"Lucy Barnes","HRC","S",1,4,4]
["Katy Woodward","WJ","V35",1,2,null,"Sue Millward","WJ","V45",1,6,6,null,"Elizabeth Bellinger","BS","V35",1,7,7,null,"Zib Gotto","SS","V45",1,10,10,null,"Terri Wiley","HRC","S",1,5,5]
["Kathryn Chapman","BS","V45",1,3,null,"Marianne Mitchell","WJ","V45",1,8,8,null,"Joanna Jurd","BS","V35",1,12,12,null,"Anne Dawson","SS","V35",1,19,19,null,"Catherine Ridge","HRC","V35",1,13,13]
["Lucy Barnes","HRC","S",1,4,null,"Jo Gladding","WJ","V35",1,9,9,null,"Eleanor Mason","BS","S",1,15,15,null,"Flo Greatrix","SS","S",1,20,20,null,"Fieke Blackwell","HRC","S",1,16,16]
["Terri Wiley","HRC","S",1,5,null,"Beverley McLees","WJ","V45",1,11,11,null,"Sophie Barc","BS","V35",1,17,17,null,"Kate Holden","SS","V55",1,25,25,null,"Paige Bircham","HRC","S",1,18,18]
["Sue Millward","WJ","V45",1,6,null,"Katrina Dobson","WJ","V35",1,14,14,null,"Marie Hockley","BS","V55",1,29,29,null,"Charlotte Teall","SS","V35",1,28,28,null,"Vicky Steadman","HRC","V45",1,23,23]
["Elizabeth Bellinger","BS","V35",1,7,null,"Anthea Francis","WJ","V45",1,21,21,null,"Jenny Brayshaw","BS","V65",1,40,40,null,"Margit Wendelberger James","SS","V55",1,33,33,null,"Kate Porter","HRC","V45",1,31,31]
["Marianne Mitchell","WJ","V45",1,8,null,"Emma Mulley","WJ","V35",1,22,22,null,"Francesca Palmer","BS","V45",1,59,59,null,"June Brennan","SS","V65",1,36,36,null,"Ruth Stapleton","HRC","V35",1,32,32]
["Jo Gladding","WJ","V35",1,9,null,"Jane Wren","WJ","V55",1,24,null,null,null,null,null,null,null,null,null,"Tina Hamilton","SS","V45",1,38,null,null,"Gail Nicholls","HRC","V55",1,34]
["Zib Gotto","SS","V45",1,10,null,"Lucy Dupuis","WJ","V45",1,26,null,null,null,null,null,null,null,null,null,"Charlotte Diggins","SS","V45",1,41,null,null,"Linda Helm-Manley","HRC","V55",1,35]
["Beverley McLees","WJ","V45",1,11,null,"Jill Patel","WJ","V45",1,27,null,null,null,null,null,null,null,null,null,"Siobhan Gibson","SS","V55",1,43,null,null,"Laura Prime","HRC","V45",1,39]
["Joanna Jurd","BS","V35",1,12,null,"Pamela Wilson","WJ","V65",1,30,null,null,null,null,null,null,null,null,null,"Chloe Brown","SS","V55",1,44,null,null,"Kerry Mavris","HRC","V45",1,42]
["Catherine Ridge","HRC","V35",1,13,null,"Jennifer Evans","WJ","S",1,37,null,null,null,null,null,null,null,null,null,"Shani Lewis","SS","V45",1,52,null,null,"Sandra Webber","HRC","V35",1,46]
["Katrina Dobson","WJ","V35",1,14,null,"Cate Camany","WJ","V55",1,45,null,null,null,null,null,null,null,null,null,"Paula Thurston","SS","V45",1,58,null,null,"Teresa Stickland","HRC","V55",1,48]
["Eleanor Mason","BS","S",1,15,null,"Kimberly Mangleshot","WJ","V45",1,47,null,null,null,null,null,null,null,null,null,null,null,null,null,null,null,null,"Elizabeth Roberts","HRC","S",1,51]
["Fieke Blackwell","HRC","S",1,16,null,"Wendy Reddaway","WJ","V55",1,49,null,null,null,null,null,null,null,null,null,null,null,null,null,null,null,null,"Heidi Fox","HRC","V35",1,61]
["Sophie Barc","BS","V35",1,17,null,"Fiona Alder","WJ","V55",1,50,null,null,null,null,null,null,null,null,null,null,null,null,null,null,null,null,"Yasmin Gregory","HRC","V55",1,62]
["Paige Bircham","HRC","S",1,18,null,"Christy van Maanenberg","WJ","V45",1,53]
["Anne Dawson","SS","V35",1,19,null,"Jeanette Collins","WJ","V55",1,54]
["Flo Greatrix","SS","S",1,20,null,"Lynsay Evans","WJ","V45",1,55]
["Anthea Francis","WJ","V45",1,21,null,"Michelle Cross","WJ","V55",1,56]
["Emma Mulley","WJ","V35",1,22,null,"Jacqui Barnard","WJ","V55",1,57]
["Vicky Steadman","HRC","V45",1,23,null,"Rebecca Drinkwater","WJ","V45",1,60]
["Jane Wren","WJ","V55",1,24]
["Kate Holden","SS","V55",1,25]
["Lucy Dupuis","WJ","V45",1,26,null,"Senior",null,null,null,null,null,null,"V35",null,null,null,null,null,null,"V45",null,null,null,null,null,null,"V55",null,null,null,null,null,null,"V65"]
["Jill Patel","WJ","V45",1,27,null,"Name","Club","Age Category","Claim","Overall Position","Category Position",null,"Name","Club","Age Category","Claim","Overall Position","Category Position",null,"Name","Club","Age Category","Claim","Overall Position","Category Position",null,"Name","Club","Age Category","Claim","Overall Position","Category Position",null,"Name","Club","Age Category","Claim","Overall Position","Category Position"]
["Charlotte Teall","SS","V35",1,28,null,"Fliss Tournant","SS","S",1,1,1,null,"Katy Woodward","WJ","V35",1,2,1,null,"Kathryn Chapman","BS","V45",1,3,1,null,"Jane Wren","WJ","V55",1,24,1,null,"Pamela Wilson","WJ","V65",1,30,1]
["Marie Hockley","BS","V55",1,29,null,"Lucy Barnes","HRC","S",1,4,2,null,"Elizabeth Bellinger","BS","V35",1,7,2,null,"Sue Millward","WJ","V45",1,6,2,null,"Kate Holden","SS","V55",1,25,2,null,"June Brennan","SS","V65",1,36,2]
["Pamela Wilson","WJ","V65",1,30,null,"Terri Wiley","HRC","S",1,5,3,null,"Jo Gladding","WJ","V35",1,9,3,null,"Marianne Mitchell","WJ","V45",1,8,3,null,"Marie Hockley","BS","V55",1,29,3,null,"Jenny Brayshaw","BS","V65",1,40,3]
["Kate Porter","HRC","V45",1,31,null,"Eleanor Mason","BS","S",1,15,4,null,"Joanna Jurd","BS","V35",1,12,4,null,"Zib Gotto","SS","V45",1,10,4,null,"Margit Wendelberger James","SS","V55",1,33,4]
["Ruth Stapleton","HRC","V35",1,32,null,"Fieke Blackwell","HRC","S",1,16,5,null,"Catherine Ridge","HRC","V35",1,13,5,null,"Beverley McLees","WJ","V45",1,11,5,null,"Gail Nicholls","HRC","V55",1,34,5]
["Margit Wendelberger James","SS","V55",1,33,null,"Paige Bircham","HRC","S",1,18,6,null,"Katrina Dobson","WJ","V35",1,14,6,null,"Anthea Francis","WJ","V45",1,21,6,null,"Linda Helm-Manley","HRC","V55",1,35,6]
["Gail Nicholls","HRC","V55",1,34,null,"Flo Greatrix","SS","S",1,20,7,null,"Sophie Barc","BS","V35",1,17,7,null,"Vicky Steadman","HRC","V45",1,23,7,null,"Siobhan Gibson","SS","V55",1,43,7]
["Linda Helm-Manley","HRC","V55",1,35,null,"Jennifer Evans","WJ","S",1,37,8,null,"Anne Dawson","SS","V35",1,19,8,null,"Lucy Dupuis","WJ","V45",1,26,8,null,"Chloe Brown","SS","V55",1,44,8]
["June Brennan","SS","V65",1,36,null,"Elizabeth Roberts","HRC","S",1,51,9,null,"Emma Mulley","WJ","V35",1,22,9,null,"Jill Patel","WJ","V45",1,27,9,null,"Cate Camany","WJ","V55",1,45,9]
["Jennifer Evans","WJ","S",1,37,null,null,null,null,null,null,null,null,"Charlotte Teall","SS","V35",1,28,10,null,"Kate Porter","HRC","V45",1,31,10,null,"Teresa Stickland","HRC","V55",1,48,10]
["Tina Hamilton","SS","V45",1,38,null,null,null,null,null,null,null,null,"Ruth Stapleton","HRC","V35",1,32,11,null,"Tina Hamilton","SS","V45",1,38,11,null,"Wendy Reddaway","WJ","V55",1,49,11]
["Laura Prime","HRC","V45",1,39,null,null,null,null,null,null,null,null,"Sandra Webber","HRC","V35",1,46,12,null,"Laura Prime","HRC","V45",1,39,12,null,"Fiona Alder","WJ","V55",1,50,12]
["Jenny Brayshaw","BS","V65",1,40,null,null,null,null,null,null,null,null,"Heidi Fox","HRC","V35",1,61,13,null,"Charlotte Diggins","SS","V45",1,41,13,null,"Jeanette Collins","WJ","V55",1,54,13]
["Charlotte Diggins","SS","V45",1,41,null,null,null,null,null,null,null,null,null,null,null,null,null,null,null,"Kerry Mavris","HRC","V45",1,42,14,null,"Michelle Cross","WJ","V55",1,56,14]
["Kerry Mavris","HRC","V45",1,42,null,null,null,null,null,null,null,null,null,null,null,null,null,null,null,"Kimberly Mangleshot","WJ","V45",1,47,15,null,"Jacqui Barnard","WJ","V55",1,57,15]
["Siobhan Gibson","SS","V55",1,43,null,null,null,null,null,null,null,null,null,null,null,null,null,null,null,"Shani Lewis","SS","V45",1,52,16,null,"Yasmin Gregory","HRC","V55",1,62,16]
["Chloe Brown","SS","V55",1,44,null,null,null,null,null,null,null,null,null,null,null,null,null,null,null,"Christy van Maanenberg","WJ","V45",1,53,17]
["Cate Camany","WJ","V55",1,45,null,null,null,null,null,null,null,null,null,null,null,null,null,null,null,"Lynsay Evans","WJ","V45",1,55,18]
["Sandra Webber","HRC","V35",1,46,null,null,null,null,null,null,null,null,null,null,null,null,null,null,null,"Paula Thurston","SS","V45",1,58,19]
["Kimberly Mangleshot","WJ","V45",1,47,null,null,null,null,null,null,null,null,null,null,null,null,null,null,null,"Francesca Palmer","BS","V45",1,59,20]
["Teresa Stickland","HRC","V55",1,48,null,null,null,null,null,null,null,null,null,null,null,null,null,null,null,"Rebecca Drinkwater","WJ","V45",1,60,21]
["Wendy Reddaway","WJ","V55",1,49]
["Fiona Alder","WJ","V55",1,50]
["Elizabeth Roberts","HRC","S",1,51]
["Shani Lewis","SS","V45",1,52]
["Christy van Maanenberg","WJ","V45",1,53]
["Jeanette Collins","WJ","V55",1,54]
["Lynsay Evans","WJ","V45",1,55]
["Michelle Cross","WJ","V55",1,56]
["Jacqui Barnard","WJ","V55",1,57]
["Paula Thurston","SS","V45",1,58]
["Francesca Palmer","BS","V45",1,59]
["Rebecca Drinkwater","WJ","V45",1,60]
["Heidi Fox","HRC","V35",1,61]
["Yasmin Gregory","HRC","V55",1,62]

{"sheet":"Race 2-Men","index":7,"n_rows":78,"n_cols":40,"rows_kept":78,"cut":false,"hidden":false,"merged":[]}
["Overall",null,null,null,null,null,"Ware Joggers",null,null,null,null,null,null,"Bishop's Stortford",null,null,null,null,null,null,"Saffron Striders",null,null,null,null,null,null,"Harlow Running & Tri Club"]
["Name","Club","Age Category","Claim","Position",null,"Name","Club","Age Category","Claim","Position",null,null,"Name","Club","Age Category","Claim","Position",null,null,"Name","Club","Age Category","Claim","Position",null,null,"Name","Club","Age Category","Claim","Position",null,null,"Name","Club","Age Category","Claim","Position"]
["Kevin Francis","WJ","V40",1,1,null,"Kevin Francis","WJ","V40",1,1,1,null,"Themi Petridis","BS","V40",1,2,2,null,"Iain Henley","SS","V40",1,3,3,null,"Rob Lowe","HRC","V50",1,11,11]
["Themi Petridis","BS","V40",1,2,null,"Tom Porter","WJ","S",1,4,4,null,"Mark Lawrence","BS","S",1,7,7,null,"Alex Smith","SS","S",1,15,15,null,"Martin Westley","HRC","S",1,18,18]
["Iain Henley","SS","V40",1,3,null,"Vincent Riviere","WJ","V40",1,5,5,null,"Keir Mann","BS","S",1,8,8,null,"David Raimondo","SS","V40",1,16,16,null,"Kirk Crudgington","HRC","V40",1,21,21]
["Tom Porter","WJ","S",1,4,null,"Mark Ford","WJ","S",1,6,6,null,"Ben Pickford","BS","V40",1,12,12,null,"Alan Jones","SS","V50",1,30,30,null,"Lee Webber","HRC","V40",1,25,25]
["Vincent Riviere","WJ","V40",1,5,null,"Nicholas Egginton","WJ","V40",1,9,9,null,"Kevin Mully","BS","V40",1,19,19,null,"Marco Arcidiacono","SS","V50",1,32,32,null,"Benjamin Usher","HRC","S",1,27,27]
["Mark Ford","WJ","S",1,6,null,"Lee Hembling","WJ","S",1,10,10,null,"Robert Thorpe","BS","V50",1,20,20,null,"Lewis Elmes","SS","S",1,36,36,null,"Jason Fox","HRC","V50",1,33,33]
["Mark Lawrence","BS","S",1,7,null,"Neil Bull","WJ","V40",1,13,13,null,"Gary Jones","BS","V50",1,22,22,null,"Nigel Coates","SS","V60",1,38,38,null,"Andrew Terrell","HRC","V40",1,37,37]
["Keir Mann","BS","S",1,8,null,"Matt Brown","WJ","S",1,14,14,null,"Matthew Ironside","BS","S",1,24,24,null,"Toby Lumbsden","SS","V60",1,40,40,null,"Nick D'Alton","HRC","V50",1,47,47]
["Nicholas Egginton","WJ","V40",1,9,null,"Jamie Higgs","WJ","V40",1,17,null,null,"Matthew Cole","BS","V40",1,26,null,null,"Mark Thackstone","SS","V50",1,41,null,null,"James Dowsett","HRC","V40",1,48]
["Lee Hembling","WJ","S",1,10,null,"Garth Morris","WJ","V60",1,23,null,null,"James Delve","BS","V40",1,28,null,null,"Oliver Diggins","SS","V40",1,42,null,null,"Chris Arnell","HRC","V40",1,51]
["Rob Lowe","HRC","V50",1,11,null,"Adam Watson","WJ","S",1,29,null,null,"Simon Judkins","BS","V40",1,35,null,null,"Richard Balarkas","SS","V60",1,43,null,null,"Iain Bulloch","HRC","V40",1,55]
["Ben Pickford","BS","V40",1,12,null,"Russell Cook","WJ","S",1,31,null,null,"Chris Chew","BS","V50",1,39,null,null,"David Martin","SS","V40",1,45,null,null,"Miguel Luque","HRC","V50",1,57]
["Neil Bull","WJ","V40",1,13,null,"Mark Sanz","WJ","V50",1,34,null,null,"Andrew Enticknap","BS",null,1,44,null,null,"John James","SS","V60",1,49,null,null,"John Tennant","HRC","V70",1,59]
["Matt Brown","WJ","S",1,14,null,"Peter Baker","WJ","V60",1,46,null,null,"Michael Toomey","BS","V60",1,54,null,null,"Andrew Page","SS","V40",1,56,null,null,"Mick Maddams","HRC","V40",1,60]
["Alex Smith","SS","S",1,15,null,"Richard van Maanenberg","WJ","V50",1,50,null,null,"Ian Penson","BS","V50",1,63,null,null,"Arthur Oliva","SS","V50",1,61,null,null,"Steve Wright","HRC","V50",1,62]
["David Raimondo","SS","V40",1,16,null,"Alan Taylor","WJ","V50",1,52,null,null,null,null,null,null,null,null,null,"Iain Rogers","SS","V50",1,64,null,null,"Sean Flynn","HRC","V60",1,65]
["Jamie Higgs","WJ","V40",1,17,null,"Alan Randall","WJ","V50",1,53,null,null,null,null,null,null,null,null,null,"Paul Long","SS","V50",1,67,null,null,"Alan Cootes","HRC","V60",1,66]
["Martin Westley","HRC","S",1,18,null,"Richard Coffey","WJ","V50",1,58,null,null,null,null,null,null,null,null,null,"Ben Wright","SS","S",1,69,null,null,"Colin Langbridge","HRC","S",1,72]
["Kevin Mully","BS","V40",1,19,null,"Simon Joyce","WJ","V50",1,68,null,null,null,null,null,null,null,null,null,"Michael Bradley","SS","V50",1,71,null,null,"Jacobus Van Der Poel","HRC","V60",1,74]
["Robert Thorpe","BS","V50",1,20,null,"Alan Rafferty","WJ","V60",1,70,null,null,null,null,null,null,null,null,null,"Simon Chambers","SS","V50",1,75]
["Kirk Crudgington","HRC","V40",1,21,null,"Paul Cocklin","WJ","V60",1,73]
["Gary Jones","BS","V50",1,22,null,"Phil Hudson","WJ","V60",1,76]
["Garth Morris","WJ","V60",1,23]
["Matthew Ironside","BS","S",1,24]
["Lee Webber","HRC","V40",1,25,null,"Senior",null,null,null,null,null,null,"V40",null,null,null,null,null,null,"V50",null,null,null,null,null,null,"V60",null,null,null,null,null,null,"V70"]
["Matthew Cole","BS","V40",1,26,null,"Name","Club","Age Category","Claim","Overall Position","Category Position",null,"Name","Club","Age Category","Claim","Overall Position","Category Position",null,"Name","Club","Age Category","Claim","Overall Position","Category Position",null,"Name","Club","Age Category","Claim","Overall Position","Category Position",null,"Name","Club","Age Category","Claim","Overall Position","Category Position"]
["Benjamin Usher","HRC","S",1,27,null,"Tom Porter","WJ","S",1,4,1,null,"Kevin Francis","WJ","V40",1,1,1,null,"Rob Lowe","HRC","V50",1,11,1,null,"Garth Morris","WJ","V60",1,23,1,null,"John Tennant","HRC","V70",1,59,1]
["James Delve","BS","V40",1,28,null,"Mark Ford","WJ","S",1,6,2,null,"Themi Petridis","BS","V40",1,2,2,null,"Robert Thorpe","BS","V50",1,20,2,null,"Nigel Coates","SS","V60",1,38,2]
["Adam Watson","WJ","S",1,29,null,"Mark Lawrence","BS","S",1,7,3,null,"Iain Henley","SS","V40",1,3,3,null,"Gary Jones","BS","V50",1,22,3,null,"Toby Lumbsden","SS","V60",1,40,3]
["Alan Jones","SS","V50",1,30,null,"Keir Mann","BS","S",1,8,4,null,"Vincent Riviere","WJ","V40",1,5,4,null,"Alan Jones","SS","V50",1,30,4,null,"Richard Balarkas","SS","V60",1,43,4]
["Russell Cook","WJ","S",1,31,null,"Lee Hembling","WJ","S",1,10,5,null,"Nicholas Egginton","WJ","V40",1,9,5,null,"Marco Arcidiacono","SS","V50",1,32,5,null,"Peter Baker","WJ","V60",1,46,5]
["Marco Arcidiacono","SS","V50",1,32,null,"Matt Brown","WJ","S",1,14,6,null,"Ben Pickford","BS","V40",1,12,6,null,"Jason Fox","HRC","V50",1,33,6,null,"John James","SS","V60",1,49,6]
["Jason Fox","HRC","V50",1,33,null,"Alex Smith","SS","S",1,15,7,null,"Neil Bull","WJ","V40",1,13,7,null,"Mark Sanz","WJ","V50",1,34,7,null,"Michael Toomey","BS","V60",1,54,7]
["Mark Sanz","WJ","V50",1,34,null,"Martin Westley","HRC","S",1,18,8,null,"David Raimondo","SS","V40",1,16,8,null,"Chris Chew","BS","V50",1,39,8,null,"Sean Flynn","HRC","V60",1,65,8]
["Simon Judkins","BS","V40",1,35,null,"Matthew Ironside","BS","S",1,24,9,null,"Jamie Higgs","WJ","V40",1,17,9,null,"Mark Thackstone","SS","V50",1,41,9,null,"Alan Cootes","HRC","V60",1,66,9]
["Lewis Elmes","SS","S",1,36,null,"Benjamin Usher","HRC","S",1,27,10,null,"Kevin Mully","BS","V40",1,19,10,null,"Nick D'Alton","HRC","V50",1,47,10,null,"Alan Rafferty","WJ","V60",1,70,10]
["Andrew Terrell","HRC","V40",1,37,null,"Adam Watson","WJ","S",1,29,11,null,"Kirk Crudgington","HRC","V40",1,21,11,null,"Richard van Maanenberg","WJ","V50",1,50,11,null,"Paul Cocklin","WJ","V60",1,73,11]
["Nigel Coates","SS","V60",1,38,null,"Russell Cook","WJ","S",1,31,12,null,"Lee Webber","HRC","V40",1,25,12,null,"Alan Taylor","WJ","V50",1,52,12,null,"Jacobus Van Der Poel","HRC","V60",1,74,12]
["Chris Chew","BS","V50",1,39,null,"Lewis Elmes","SS","S",1,36,13,null,"Matthew Cole","BS","V40",1,26,13,null,"Alan Randall","WJ","V50",1,53,13,null,"Phil Hudson","WJ","V60",1,76,13]
["Toby Lumbsden","SS","V60",1,40,null,"Ben Wright","SS","S",1,69,14,null,"James Delve","BS","V40",1,28,14,null,"Miguel Luque","HRC","V50",1,57,14]
["Mark Thackstone","SS","V50",1,41,null,"Colin Langbridge","HRC","S",1,72,15,null,"Simon Judkins","BS","V40",1,35,15,null,"Richard Coffey","WJ","V50",1,58,15]
["Oliver Diggins","SS","V40",1,42,null,null,null,null,null,null,null,null,"Andrew Terrell","HRC","V40",1,37,16,null,"Arthur Oliva","SS","V50",1,61,16]
["Richard Balarkas","SS","V60",1,43,null,null,null,null,null,null,null,null,"Oliver Diggins","SS","V40",1,42,17,null,"Steve Wright","HRC","V50",1,62,17]
["Andrew Enticknap","BS",null,1,44,null,null,null,null,null,null,null,null,"David Martin","SS","V40",1,45,18,null,"Ian Penson","BS","V50",1,63,18]
["David Martin","SS","V40",1,45,null,null,null,null,null,null,null,null,"James Dowsett","HRC","V40",1,48,19,null,"Iain Rogers","SS","V50",1,64,19]
["Peter Baker","WJ","V60",1,46,null,null,null,null,null,null,null,null,"Chris Arnell","HRC","V40",1,51,20,null,"Paul Long","SS","V50",1,67,20]
["Nick D'Alton","HRC","V50",1,47,null,null,null,null,null,null,null,null,"Iain Bulloch","HRC","V40",1,55,21,null,"Simon Joyce","WJ","V50",1,68,21]
["James Dowsett","HRC","V40",1,48,null,null,null,null,null,null,null,null,"Andrew Page","SS","V40",1,56,22,null,"Michael Bradley","SS","V50",1,71,22]
["John James","SS","V60",1,49,null,null,null,null,null,null,null,null,"Mick Maddams","HRC","V40",1,60,23,null,"Simon Chambers","SS","V50",1,75,23]
["Richard van Maanenberg","WJ","V50",1,50]
["Chris Arnell","HRC","V40",1,51]
["Alan Taylor","WJ","V50",1,52]
["Alan Randall","WJ","V50",1,53]
["Michael Toomey","BS","V60",1,54]
["Iain Bulloch","HRC","V40",1,55]
["Andrew Page","SS","V40",1,56]
["Miguel Luque","HRC","V50",1,57]
["Richard Coffey","WJ","V50",1,58]
["John Tennant","HRC","V70",1,59]
["Mick Maddams","HRC","V40",1,60]
["Arthur Oliva","SS","V50",1,61]
["Steve Wright","HRC","V50",1,62]
["Ian Penson","BS","V50",1,63]
["Iain Rogers","SS","V50",1,64]
["Sean Flynn","HRC","V60",1,65]
["Alan Cootes","HRC","V60",1,66]
["Paul Long","SS","V50",1,67]
["Simon Joyce","WJ","V50",1,68]
["Ben Wright","SS","S",1,69]
["Alan Rafferty","WJ","V60",1,70]
["Michael Bradley","SS","V50",1,71]
["Colin Langbridge","HRC","S",1,72]
["Paul Cocklin","WJ","V60",1,73]
["Jacobus Van Der Poel","HRC","V60",1,74]
["Simon Chambers","SS","V50",1,75]
["Phil Hudson","WJ","V60",1,76]

{"sheet":"Race 2-Ladies","index":8,"n_rows":75,"n_cols":40,"rows_kept":75,"cut":false,"hidden":false,"merged":[]}
["Overall",null,null,null,null,null,"Ware Joggers",null,null,null,null,null,null,"Bishop's Stortford",null,null,null,null,null,null,"Saffron Striders",null,null,null,null,null,null,"Harlow Running & Tri Club"]
["Name","Club","Age Category","Claim","Position",null,"Name","Club","Age Category","Claim","Position",null,null,"Name","Club","Age Category","Claim","Position",null,null,"Name","Club","Age Category","Claim","Position",null,null,"Name","Club","Age Category","Claim","Position",null,null,"Name","Club","Age Category","Claim","Position"]
["Lucy Barnes","HRC","S",1,1,null,"Katy Woodward","WJ","V35",1,2,2,null,"Ruby Featherstone","BS","S",1,4,4,null,"Fliss Tournant","SS","S",1,3,3,null,"Lucy Barnes","HRC","S",1,1,1]
["Katy Woodward","WJ","V35",1,2,null,"Marianne Mitchell","WJ","V45",1,6,6,null,"Elizabeth Bellinger","BS","V35",1,5,5,null,"Flo Greatrix","SS","S",1,24,24,null,"Terri Wiley","HRC","S",1,7,7]
["Fliss Tournant","SS","S",1,3,null,"Jo Gladding","WJ","V35",1,8,8,null,"Joanna Jurd","BS","V35",1,9,9,null,"Kate Holden","SS","V55",1,25,25,null,"Catherine Ridge","HRC","V35",1,10,10]
["Ruby Featherstone","BS","S",1,4,null,"Beverley McLees","WJ","V45",1,12,12,null,"Vicky Simpson","BS","V45",1,13,13,null,"Helen Howard","SS","V45",1,28,28,null,"Fieke Blackwell","HRC","S",1,11,11]
["Elizabeth Bellinger","BS","V35",1,5,null,"Sarah Hopewell","WJ","V35",1,14,14,null,"Sophie Barc","BS","V35",1,15,15,null,"Charlotte Diggins","SS","V45",1,46,46,null,"Sandra Rust","HRC","V45",1,17,17]
["Marianne Mitchell","WJ","V45",1,6,null,"Katrina Dobson","WJ","V35",1,16,16,null,"Lucy Robinson","BS","V35",1,19,19,null,"Lisa Plumb","SS","V45",1,49,49,null,"Ruth Stapleton","HRC","V35",1,29,29]
["Terri Wiley","HRC","S",1,7,null,"Anthea Francis","WJ","V45",1,18,18,null,"Joanna Arscott","BS","V35",1,20,20,null,"June Brennan","SS","V65",1,50,50,null,"Kate Porter","HRC","V45",1,32,32]
["Jo Gladding","WJ","V35",1,8,null,"Jane Wren","WJ","V55",1,21,21,null,"Andrea Thorpe","BS","V45",1,22,22,null,"Charlotte Teall","SS","V35",1,51,51,null,"Michelle Hyde","HRC","V35",1,39,39]
["Joanna Jurd","BS","V35",1,9,null,"Jill Patel","WJ","V45",1,26,null,null,"Marie Hockley","BS","V55",1,23,null,null,null,null,null,null,null,null,null,"Kerry Mavris","HRC","V45",1,42]
["Catherine Ridge","HRC","V35",1,10,null,"Fiona Smith","WJ","S",1,30,null,null,"Paula Beades","BS","V45",1,27,null,null,null,null,null,null,null,null,null,"Sandra Webber","HRC","V35",1,53]
["Fieke Blackwell","HRC","S",1,11,null,"Pamela Wilson","WJ","V65",1,31,null,null,"Bekah Cranch","BS","S",1,34,null,null,null,null,null,null,null,null,null,"Teresa Stickland","HRC","V55",1,58]
["Beverley McLees","WJ","V45",1,12,null,"Rachel Symonds","WJ","V35",1,33,null,null,"Serena Beresford","BS","V35",1,35,null,null,null,null,null,null,null,null,null,"Heidi Fox","HRC","V35",1,67]
["Vicky Simpson","BS","V45",1,13,null,"Sue Taylor","WJ","V45",1,36,null,null,"Ellen Brooks","BS","V35",1,38,null,null,null,null,null,null,null,null,null,"Joy Hale","HRC","V35",1,68]
["Sarah Hopewell","WJ","V35",1,14,null,"Melanie Blackaby","WJ","V45",1,37,null,null,"Lara Wheeldon","BS","V45",1,48]
["Sophie Barc","BS","V35",1,15,null,"Teresa Weedon","WJ","V55",1,40,null,null,"Sarah Mackay","BS","V35",1,52]
["Katrina Dobson","WJ","V35",1,16,null,"Gemma Charville","WJ","V35",1,41,null,null,"Shirley Ball","BS","V65",1,54]
["Sandra Rust","HRC","V45",1,17,null,"Carla Bell","WJ","V55",1,43,null,null,"Sarah Porter","BS","V45",1,59]
["Anthea Francis","WJ","V45",1,18,null,"Kimberly Mangleshot","WJ","V45",1,44,null,null,"Frances Iwaschkin","BS","V35",1,60]
["Lucy Robinson","BS","V35",1,19,null,"Jennifer Evans","WJ","S",1,45,null,null,"Robinne Colby","BS","V55",1,64]
["Joanna Arscott","BS","V35",1,20,null,"Paula Gollop","WJ","V35",1,47,null,null,"Theresa Burke","BS","V65",1,71]
["Jane Wren","WJ","V55",1,21,null,"Wendy Reddaway","WJ","V55",1,55]
["Andrea Thorpe","BS","V45",1,22,null,"Cate Camany","WJ","V55",1,56]
["Marie Hockley","BS","V55",1,23,null,"Anne Ramsden","WJ","V65",1,57]
["Flo Greatrix","SS","S",1,24,null,"Fiona Alder","WJ","V55",1,61]
["Kate Holden","SS","V55",1,25,null,"Jeanette Collins","WJ","V55",1,62]
["Jill Patel","WJ","V45",1,26,null,"Jacqui Barnard","WJ","V55",1,63]
["Paula Beades","BS","V45",1,27,null,"Michelle Cross","WJ","V55",1,65]
["Helen Howard","SS","V45",1,28,null,"Lynsay Evans","WJ","V45",1,66]
["Ruth Stapleton","HRC","V35",1,29,null,"Rebecca Drinkwater","WJ","V45",1,69]
["Fiona Smith","WJ","S",1,30,null,"Rosalind Hitchen","WJ","V55",1,70]
["Pamela Wilson","WJ","V65",1,31,null,"Caroline Stephens","WJ","V55",1,72]
["Kate Porter","HRC","V45",1,32,null,"Claron Riviere","WJ","V65",1,73]
["Rachel Symonds","WJ","V35",1,33]
["Bekah Cranch","BS","S",1,34]
["Serena Beresford","BS","V35",1,35,null,"Senior",null,null,null,null,null,null,"V35",null,null,null,null,null,null,"V45",null,null,null,null,null,null,"V55",null,null,null,null,null,null,"V65"]
["Sue Taylor","WJ","V45",1,36,null,"Name","Club","Age Category","Claim","Overall Position","Category Position",null,"Name","Club","Age Category","Claim","Overall Position","Category Position",null,"Name","Club","Age Category","Claim","Overall Position","Category Position",null,"Name","Club","Age Category","Claim","Overall Position","Category Position",null,"Name","Club","Age Category","Claim","Overall Position","Category Position"]
["Melanie Blackaby","WJ","V45",1,37,null,"Lucy Barnes","HRC","S",1,1,1,null,"Katy Woodward","WJ","V35",1,2,1,null,"Marianne Mitchell","WJ","V45",1,6,1,null,"Jane Wren","WJ","V55",1,21,1,null,"Pamela Wilson","WJ","V65",1,31,1]
["Ellen Brooks","BS","V35",1,38,null,"Fliss Tournant","SS","S",1,3,2,null,"Elizabeth Bellinger","BS","V35",1,5,2,null,"Beverley McLees","WJ","V45",1,12,2,null,"Marie Hockley","BS","V55",1,23,2,null,"June Brennan","SS","V65",1,50,2]
["Michelle Hyde","HRC","V35",1,39,null,"Ruby Featherstone","BS","S",1,4,3,null,"Jo Gladding","WJ","V35",1,8,3,null,"Vicky Simpson","BS","V45",1,13,3,null,"Kate Holden","SS","V55",1,25,3,null,"Shirley Ball","BS","V65",1,54,3]
["Teresa Weedon","WJ","V55",1,40,null,"Terri Wiley","HRC","S",1,7,4,null,"Joanna Jurd","BS","V35",1,9,4,null,"Sandra Rust","HRC","V45",1,17,4,null,"Teresa Weedon","WJ","V55",1,40,4,null,"Anne Ramsden","WJ","V65",1,57,4]
["Gemma Charville","WJ","V35",1,41,null,"Fieke Blackwell","HRC","S",1,11,5,null,"Catherine Ridge","HRC","V35",1,10,5,null,"Anthea Francis","WJ","V45",1,18,5,null,"Carla Bell","WJ","V55",1,43,5,null,"Theresa Burke","BS","V65",1,71,5]
["Kerry Mavris","HRC","V45",1,42,null,"Flo Greatrix","SS","S",1,24,6,null,"Sarah Hopewell","WJ","V35",1,14,6,null,"Andrea Thorpe","BS","V45",1,22,6,null,"Wendy Reddaway","WJ","V55",1,55,6,null,"Claron Riviere","WJ","V65",1,73,6]
["Carla Bell","WJ","V55",1,43,null,"Fiona Smith","WJ","S",1,30,7,null,"Sophie Barc","BS","V35",1,15,7,null,"Jill Patel","WJ","V45",1,26,7,null,"Cate Camany","WJ","V55",1,56,7]
["Kimberly Mangleshot","WJ","V45",1,44,null,"Bekah Cranch","BS","S",1,34,8,null,"Katrina Dobson","WJ","V35",1,16,8,null,"Paula Beades","BS","V45",1,27,8,null,"Teresa Stickland","HRC","V55",1,58,8]
["Jennifer Evans","WJ","S",1,45,null,"Jennifer Evans","WJ","S",1,45,9,null,"Lucy Robinson","BS","V35",1,19,9,null,"Helen Howard","SS","V45",1,28,9,null,"Fiona Alder","WJ","V55",1,61,9]
["Charlotte Diggins","SS","V45",1,46,null,null,null,null,null,null,null,null,"Joanna Arscott","BS","V35",1,20,10,null,"Kate Porter","HRC","V45",1,32,10,null,"Jeanette Collins","WJ","V55",1,62,10]
["Paula Gollop","WJ","V35",1,47,null,null,null,null,null,null,null,null,"Ruth Stapleton","HRC","V35",1,29,11,null,"Sue Taylor","WJ","V45",1,36,11,null,"Jacqui Barnard","WJ","V55",1,63,11]
["Lara Wheeldon","BS","V45",1,48,null,null,null,null,null,null,null,null,"Rachel Symonds","WJ","V35",1,33,12,null,"Melanie Blackaby","WJ","V45",1,37,12,null,"Robinne Colby","BS","V55",1,64,12]
["Lisa Plumb","SS","V45",1,49,null,null,null,null,null,null,null,null,"Serena Beresford","BS","V35",1,35,13,null,"Kerry Mavris","HRC","V45",1,42,13,null,"Michelle Cross","WJ","V55",1,65,13]
["June Brennan","SS","V65",1,50,null,null,null,null,null,null,null,null,"Ellen Brooks","BS","V35",1,38,14,null,"Kimberly Mangleshot","WJ","V45",1,44,14,null,"Rosalind Hitchen","WJ","V55",1,70,14]
["Charlotte Teall","SS","V35",1,51,null,null,null,null,null,null,null,null,"Michelle Hyde","HRC","V35",1,39,15,null,"Charlotte Diggins","SS","V45",1,46,15,null,"Caroline Stephens","WJ","V55",1,72,15]
["Sarah Mackay","BS","V35",1,52,null,null,null,null,null,null,null,null,"Gemma Charville","WJ","V35",1,41,16,null,"Lara Wheeldon","BS","V45",1,48,16]
["Sandra Webber","HRC","V35",1,53,null,null,null,null,null,null,null,null,"Paula Gollop","WJ","V35",1,47,17,null,"Lisa Plumb","SS","V45",1,49,17]
["Shirley Ball","BS","V65",1,54,null,null,null,null,null,null,null,null,"Charlotte Teall","SS","V35",1,51,18,null,"Sarah Porter","BS","V45",1,59,18]
["Wendy Reddaway","WJ","V55",1,55,null,null,null,null,null,null,null,null,"Sarah Mackay","BS","V35",1,52,19,null,"Lynsay Evans","WJ","V45",1,66,19]
["Cate Camany","WJ","V55",1,56,null,null,null,null,null,null,null,null,"Sandra Webber","HRC","V35",1,53,20,null,"Rebecca Drinkwater","WJ","V45",1,69,20]
["Anne Ramsden","WJ","V65",1,57,null,null,null,null,null,null,null,null,"Frances Iwaschkin","BS","V35",1,60,21]
["Teresa Stickland","HRC","V55",1,58,null,null,null,null,null,null,null,null,"Heidi Fox","HRC","V35",1,67,22]
["Sarah Porter","BS","V45",1,59,null,null,null,null,null,null,null,null,"Joy Hale","HRC","V35",1,68,23]
["Frances Iwaschkin","BS","V35",1,60]
["Fiona Alder","WJ","V55",1,61]
["Jeanette Collins","WJ","V55",1,62]
["Jacqui Barnard","WJ","V55",1,63]
["Robinne Colby","BS","V55",1,64]
["Michelle Cross","WJ","V55",1,65]
["Lynsay Evans","WJ","V45",1,66]
["Heidi Fox","HRC","V35",1,67]
["Joy Hale","HRC","V35",1,68]
["Rebecca Drinkwater","WJ","V45",1,69]
["Rosalind Hitchen","WJ","V55",1,70]
["Theresa Burke","BS","V65",1,71]
["Caroline Stephens","WJ","V55",1,72]
["Claron Riviere","WJ","V65",1,73]

{"sheet":"Race 3-Men","index":9,"n_rows":92,"n_cols":40,"rows_kept":92,"cut":false,"hidden":false,"merged":[]}
["Overall",null,null,null,null,null,"Ware Joggers",null,null,null,null,null,null,"Bishop's Stortford",null,null,null,null,null,null,"Saffron Striders",null,null,null,null,null,null,"Harlow Running & Tri Club"]
["Name","Club","Age Category","Claim","Position",null,"Name","Club","Age Category","Claim","Position",null,null,"Name","Club","Age Category","Claim","Position",null,null,"Name","Club","Age Category","Claim","Position",null,null,"Name","Club","Age Category","Claim","Position",null,null,"Name","Club","Age Category","Claim","Position"]
["Michael Waddington","WJ","S",1,1,null,"Michael Waddington","WJ","S",1,1,1,null,"Samuel Pedley","BS","S",1,2,2,null,"Nick White","SS","V40",1,3,3,null,"Rob Lowe","HRC","V50",1,6,6]
["Samuel Pedley","BS","S",1,2,null,"Kevin Francis","WJ","V40",1,4,4,null,"Themi Petridis","BS","V40",1,5,5,null,"David Raimondo","SS","V40",1,14,14,null,"Paskell Blackwell","HRC","V40",1,8,8]
["Nick White","SS","V40",1,3,null,"Tom Porter","WJ","S",1,7,7,null,"Mark Lawrence","BS","S",1,10,10,null,"Jon Cooke","SS","V50",1,22,22,null,"Benjamin Usher","HRC","S",1,20,20]
["Kevin Francis","WJ","V40",1,4,null,"Matt Brown","WJ","S",1,9,9,null,"Matthew Ironside","BS","S",1,13,13,null,"Freddie Cooke","SS","S",1,25,25,null,"Kirk Crudgington","HRC","V40",1,28,28]
["Themi Petridis","BS","V40",1,5,null,"Vincent Riviere","WJ","V40",1,11,11,null,"Ben Pickford","BS","V40",1,15,15,null,"Ian MacDougall","SS","V60",1,27,27,null,"Martin Westley","HRC","S",1,31,31]
["Rob Lowe","HRC","V50",1,6,null,"Ian Perrins","WJ","S",1,12,12,null,"Henry Ward","BS","S",1,24,24,null,"Justin James","SS","V50",1,29,29,null,"Mark Bentley","HRC","V50",1,38,38]
["Tom Porter","WJ","S",1,7,null,"Nicholas Egginton","WJ","V40",1,16,16,null,"Gary Jones","BS","V50",1,30,30,null,"Tim McMahon","SS","V40",1,35,35,null,"Andrew Terrell","HRC","V40",1,39,39]
["Paskell Blackwell","HRC","V40",1,8,null,"Johnny Nichols","WJ","S",1,17,17,null,"James Delve","BS","V40",1,32,32,null,"Marco Arcidiacono","SS","V50",1,37,37,null,"Alexis Ellington","HRC","V40",1,40,40]
["Matt Brown","WJ","S",1,9,null,"Jamie Higgs","WJ","V40",1,18,null,null,"Dominic Mason","BS","V50",1,34,null,null,"Toby Lumbsden","SS","V60",1,44,null,null,"Nick D'Alton","HRC","V50",1,43]
["Mark Lawrence","BS","S",1,10,null,"Lee Hembling","WJ","S",1,19,null,null,"George Thorpe","BS","S",1,36,null,null,"Oliver Diggins","SS","V40",1,45,null,null,"Chris Arnell","HRC","V40",1,47]
["Vincent Riviere","WJ","V40",1,11,null,"Neil Bull","WJ","V40",1,21,null,null,"Lee Boswell","BS","S",1,41,null,null,"Richard Balarkas","SS","V60",1,51,null,null,"Jon Steadman","HRC","V40",1,48]
["Ian Perrins","WJ","S",1,12,null,"Garth Morris","WJ","V60",1,23,null,null,"Chris Chew","BS","V50",1,49,null,null,"Neil Halls","SS","V40",1,55,null,null,"James Dowsett","HRC","V40",1,50]
["Matthew Ironside","BS","S",1,13,null,"Will Breese","WJ","S",1,26,null,null,"John Kennedy","BS","V50",1,53,null,null,"John James","SS","V60",1,60,null,null,"Mark Unwin","HRC","V40",1,58]
["David Raimondo","SS","V40",1,14,null,"Adam Watson","WJ","S",1,33,null,null,"Oliver Last","BS","V50",1,57,null,null,"David Martin","SS","V40",1,61,null,null,"Miguel Luque","HRC","V50",1,64]
["Ben Pickford","BS","V40",1,15,null,"Mark Sanz","WJ","V50",1,42,null,null,"Stuart Davenport","BS","V50",1,80,null,null,"Alan Jones","SS","V50",1,63,null,null,"Bobby Draper","HRC","V50",1,66]
["Nicholas Egginton","WJ","V40",1,16,null,"James Randall","WJ","S",1,46,null,null,"Ian Penson","BS","V50",1,82,null,null,"Lee Gamble","SS","V40",1,65,null,null,"Sean Flynn","HRC","V60",1,71]
["Johnny Nichols","WJ","S",1,17,null,"Andy Biggs","WJ","V40",1,52,null,null,"Ian McClymont","BS","V70",1,85,null,null,"Arthur Oliva","SS","V50",1,67,null,null,"John Tennant","HRC","V70",1,72]
["Jamie Higgs","WJ","V40",1,18,null,"Peter Baker","WJ","V60",1,54,null,null,"Rohit Dayama","BS","V40",1,86,null,null,"Alistair Cooke","SS","V40",1,69,null,null,"Alan Cootes","HRC","V60",1,75]
["Lee Hembling","WJ","S",1,19,null,"Alan Taylor","WJ","V50",1,56,null,null,null,null,null,null,null,null,null,"Iain Rogers","SS","V50",1,70,null,null,"Tony Harman","HRC","V50",1,84]
["Benjamin Usher","HRC","S",1,20,null,"Matt Earl","WJ","V40",1,59,null,null,null,null,null,null,null,null,null,"Ben Wright","SS","S",1,73,null,null,"Alan Wellbelove","HRC","V60",1,90]
["Neil Bull","WJ","V40",1,21,null,"Alan Randall","WJ","V50",1,62,null,null,null,null,null,null,null,null,null,"Mark Thackstone","SS","V50",1,76]
["Jon Cooke","SS","V50",1,22,null,"Richard Coffey","WJ","V50",1,68,null,null,null,null,null,null,null,null,null,"Paul Long","SS","V50",1,78]
["Garth Morris","WJ","V60",1,23,null,"Alan Rafferty","WJ","V60",1,74,null,null,null,null,null,null,null,null,null,"Mark Fitzhenry","SS","V60",1,79]
["Henry Ward","BS","S",1,24,null,"Simon Joyce","WJ","V50",1,77,null,null,null,null,null,null,null,null,null,"Michael Bradley","SS","V50",1,83]
["Freddie Cooke","SS","S",1,25,null,"Clive Smith","WJ","V60",1,81]
["Will Breese","WJ","S",1,26,null,"Peter Keats","WJ","V60",1,87]
["Ian MacDougall","SS","V60",1,27,null,"Phil Hudson","WJ","V60",1,88]
["Kirk Crudgington","HRC","V40",1,28,null,"Colin Naman","WJ","V70",1,89]
["Justin James","SS","V50",1,29]
["Gary Jones","BS","V50",1,30]
["Martin Westley","HRC","S",1,31,null,"Senior",null,null,null,null,null,null,"V40",null,null,null,null,null,null,"V50",null,null,null,null,null,null,"V60",null,null,null,null,null,null,"V70"]
["James Delve","BS","V40",1,32,null,"Name","Club","Age Category","Claim","Overall Position","Category Position",null,"Name","Club","Age Category","Claim","Overall Position","Category Position",null,"Name","Club","Age Category","Claim","Overall Position","Category Position",null,"Name","Club","Age Category","Claim","Overall Position","Category Position",null,"Name","Club","Age Category","Claim","Overall Position","Category Position"]
["Adam Watson","WJ","S",1,33,null,"Michael Waddington","WJ","S",1,1,1,null,"Nick White","SS","V40",1,3,1,null,"Rob Lowe","HRC","V50",1,6,1,null,"Garth Morris","WJ","V60",1,23,1,null,"John Tennant","HRC","V70",1,72,1]
["Dominic Mason","BS","V50",1,34,null,"Samuel Pedley","BS","S",1,2,2,null,"Kevin Francis","WJ","V40",1,4,2,null,"Jon Cooke","SS","V50",1,22,2,null,"Ian MacDougall","SS","V60",1,27,2,null,"Ian McClymont","BS","V70",1,85,2]
["Tim McMahon","SS","V40",1,35,null,"Tom Porter","WJ","S",1,7,3,null,"Themi Petridis","BS","V40",1,5,3,null,"Justin James","SS","V50",1,29,3,null,"Toby Lumbsden","SS","V60",1,44,3,null,"Colin Naman","WJ","V70",1,89,3]
["George Thorpe","BS","S",1,36,null,"Matt Brown","WJ","S",1,9,4,null,"Paskell Blackwell","HRC","V40",1,8,4,null,"Gary Jones","BS","V50",1,30,4,null,"Richard Balarkas","SS","V60",1,51,4]
["Marco Arcidiacono","SS","V50",1,37,null,"Mark Lawrence","BS","S",1,10,5,null,"Vincent Riviere","WJ","V40",1,11,5,null,"Dominic Mason","BS","V50",1,34,5,null,"Peter Baker","WJ","V60",1,54,5]
["Mark Bentley","HRC","V50",1,38,null,"Ian Perrins","WJ","S",1,12,6,null,"David Raimondo","SS","V40",1,14,6,null,"Marco Arcidiacono","SS","V50",1,37,6,null,"John James","SS","V60",1,60,6]
["Andrew Terrell","HRC","V40",1,39,null,"Matthew Ironside","BS","S",1,13,7,null,"Ben Pickford","BS","V40",1,15,7,null,"Mark Bentley","HRC","V50",1,38,7,null,"Sean Flynn","HRC","V60",1,71,7]
["Alexis Ellington","HRC","V40",1,40,null,"Johnny Nichols","WJ","S",1,17,8,null,"Nicholas Egginton","WJ","V40",1,16,8,null,"Mark Sanz","WJ","V50",1,42,8,null,"Alan Rafferty","WJ","V60",1,74,8]
["Lee Boswell","BS","S",1,41,null,"Lee Hembling","WJ","S",1,19,9,null,"Jamie Higgs","WJ","V40",1,18,9,null,"Nick D'Alton","HRC","V50",1,43,9,null,"Alan Cootes","HRC","V60",1,75,9]
["Mark Sanz","WJ","V50",1,42,null,"Benjamin Usher","HRC","S",1,20,10,null,"Neil Bull","WJ","V40",1,21,10,null,"Chris Chew","BS","V50",1,49,10,null,"Mark Fitzhenry","SS","V60",1,79,10]
["Nick D'Alton","HRC","V50",1,43,null,"Henry Ward","BS","S",1,24,11,null,"Kirk Crudgington","HRC","V40",1,28,11,null,"John Kennedy","BS","V50",1,53,11,null,"Clive Smith","WJ","V60",1,81,11]
["Toby Lumbsden","SS","V60",1,44,null,"Freddie Cooke","SS","S",1,25,12,null,"James Delve","BS","V40",1,32,12,null,"Alan Taylor","WJ","V50",1,56,12,null,"Peter Keats","WJ","V60",1,87,12]
["Oliver Diggins","SS","V40",1,45,null,"Will Breese","WJ","S",1,26,13,null,"Tim McMahon","SS","V40",1,35,13,null,"Oliver Last","BS","V50",1,57,13,null,"Phil Hudson","WJ","V60",1,88,13]
["James Randall","WJ","S",1,46,null,"Martin Westley","HRC","S",1,31,14,null,"Andrew Terrell","HRC","V40",1,39,14,null,"Alan Randall","WJ","V50",1,62,14,null,"Alan Wellbelove","HRC","V60",1,90,14]
["Chris Arnell","HRC","V40",1,47,null,"Adam Watson","WJ","S",1,33,15,null,"Alexis Ellington","HRC","V40",1,40,15,null,"Alan Jones","SS","V50",1,63,15]
["Jon Steadman","HRC","V40",1,48,null,"George Thorpe","BS","S",1,36,16,null,"Oliver Diggins","SS","V40",1,45,16,null,"Miguel Luque","HRC","V50",1,64,16]
["Chris Chew","BS","V50",1,49,null,"Lee Boswell","BS","S",1,41,17,null,"Chris Arnell","HRC","V40",1,47,17,null,"Bobby Draper","HRC","V50",1,66,17]
["James Dowsett","HRC","V40",1,50,null,"James Randall","WJ","S",1,46,18,null,"Jon Steadman","HRC","V40",1,48,18,null,"Arthur Oliva","SS","V50",1,67,18]
["Richard Balarkas","SS","V60",1,51,null,"Ben Wright","SS","S",1,73,19,null,"James Dowsett","HRC","V40",1,50,19,null,"Richard Coffey","WJ","V50",1,68,19]
["Andy Biggs","WJ","V40",1,52,null,null,null,null,null,null,null,null,"Andy Biggs","WJ","V40",1,52,20,null,"Iain Rogers","SS","V50",1,70,20]
["John Kennedy","BS","V50",1,53,null,null,null,null,null,null,null,null,"Neil Halls","SS","V40",1,55,21,null,"Mark Thackstone","SS","V50",1,76,21]
["Peter Baker","WJ","V60",1,54,null,null,null,null,null,null,null,null,"Mark Unwin","HRC","V40",1,58,22,null,"Simon Joyce","WJ","V50",1,77,22]
["Neil Halls","SS","V40",1,55,null,null,null,null,null,null,null,null,"Matt Earl","WJ","V40",1,59,23,null,"Paul Long","SS","V50",1,78,23]
["Alan Taylor","WJ","V50",1,56,null,null,null,null,null,null,null,null,"David Martin","SS","V40",1,61,24,null,"Stuart Davenport","BS","V50",1,80,24]
["Oliver Last","BS","V50",1,57,null,null,null,null,null,null,null,null,"Lee Gamble","SS","V40",1,65,25,null,"Ian Penson","BS","V50",1,82,25]
["Mark Unwin","HRC","V40",1,58,null,null,null,null,null,null,null,null,"Alistair Cooke","SS","V40",1,69,26,null,"Michael Bradley","SS","V50",1,83,26]
["Matt Earl","WJ","V40",1,59,null,null,null,null,null,null,null,null,"Rohit Dayama","BS","V40",1,86,27,null,"Tony Harman","HRC","V50",1,84,27]
["John James","SS","V60",1,60]
["David Martin","SS","V40",1,61]
["Alan Randall","WJ","V50",1,62]
["Alan Jones","SS","V50",1,63]
["Miguel Luque","HRC","V50",1,64]
["Lee Gamble","SS","V40",1,65]
["Bobby Draper","HRC","V50",1,66]
["Arthur Oliva","SS","V50",1,67]
["Richard Coffey","WJ","V50",1,68]
["Alistair Cooke","SS","V40",1,69]
["Iain Rogers","SS","V50",1,70]
["Sean Flynn","HRC","V60",1,71]
["John Tennant","HRC","V70",1,72]
["Ben Wright","SS","S",1,73]
["Alan Rafferty","WJ","V60",1,74]
["Alan Cootes","HRC","V60",1,75]
["Mark Thackstone","SS","V50",1,76]
["Simon Joyce","WJ","V50",1,77]
["Paul Long","SS","V50",1,78]
["Mark Fitzhenry","SS","V60",1,79]
["Stuart Davenport","BS","V50",1,80]
["Clive Smith","WJ","V60",1,81]
["Ian Penson","BS","V50",1,82]
["Michael Bradley","SS","V50",1,83]
["Tony Harman","HRC","V50",1,84]
["Ian McClymont","BS","V70",1,85]
["Rohit Dayama","BS","V40",1,86]
["Peter Keats","WJ","V60",1,87]
["Phil Hudson","WJ","V60",1,88]
["Colin Naman","WJ","V70",1,89]
["Alan Wellbelove","HRC","V60",1,90]

{"sheet":"Race 3-Ladies","index":10,"n_rows":80,"n_cols":40,"rows_kept":80,"cut":false,"hidden":false,"merged":[]}
["Overall",null,null,null,null,null,"Ware Joggers",null,null,null,null,null,null,"Bishop's Stortford",null,null,null,null,null,null,"Saffron Striders",null,null,null,null,null,null,"Harlow Running & Tri Club"]
["Name","Club","Age Category","Claim","Position",null,"Name","Club","Age Category","Claim","Position",null,null,"Name","Club","Age Category","Claim","Position",null,null,"Name","Club","Age Category","Claim","Position",null,null,"Name","Club","Age Category","Claim","Position",null,null,"Name","Club","Age Category","Claim","Position"]
["Lucy Barnes","HRC","S",1,1,null,"Katy Woodward","WJ","V35",1,2,2,null,"Elizabeth Bellinger","BS","V35",1,4,4,null,"Zib Gotto","SS","V45",1,8,8,null,"Lucy Barnes","HRC","S",1,1,1]
["Katy Woodward","WJ","V35",1,2,null,"Marianne Mitchell","WJ","V45",1,5,5,null,"Sophie Barc","BS","V35",1,9,9,null,"Flo Greatrix","SS","S",1,16,16,null,"Terri Wiley","HRC","S",1,3,3]
["Terri Wiley","HRC","S",1,3,null,"Jo Gladding","WJ","V35",1,6,6,null,"Lucy Robinson","BS","V35",1,12,12,null,"Fiona Halls","SS","V45",1,21,21,null,"Fieke Blackwell","HRC","S",1,11,11]
["Elizabeth Bellinger","BS","V35",1,4,null,"Beverley McLees","WJ","V45",1,7,7,null,"Joanna Arscott","BS","V35",1,17,17,null,"Kate Holden","SS","V55",1,28,28,null,"Sandra Rust","HRC","V45",1,15,15]
["Marianne Mitchell","WJ","V45",1,5,null,"Sarah Hopewell","WJ","V35",1,10,10,null,"Fay Humphries","BS","S",1,22,22,null,"Helen Howard","SS","V45",1,33,33,null,"Paige Bircham","HRC","S",1,18,18]
["Jo Gladding","WJ","V35",1,6,null,"Katrina Dobson","WJ","V35",1,13,13,null,"Paula Beades","BS","V45",1,25,25,null,"June Brennan","SS","V65",1,39,39,null,"Louise Cootes","HRC","V35",1,26,26]
["Beverley McLees","WJ","V45",1,7,null,"Anthea Francis","WJ","V45",1,14,14,null,"Bekah Cranch","BS","S",1,27,27,null,"Tina Hamilton","SS","V45",1,44,44,null,"Gail Nicholls","HRC","V55",1,37,37]
["Zib Gotto","SS","V45",1,8,null,"Sue Fracer","WJ","S",1,19,19,null,"Marie Hockley","BS","V55",1,30,30,null,"Rachael Pearson","SS","V35",1,46,46,null,"Kerry Mavris","HRC","V45",1,38,38]
["Sophie Barc","BS","V35",1,9,null,"Emma Mulley","WJ","V35",1,20,null,null,"Emma Nixon","BS","V55",1,34,null,null,"Margit Wendelberger James","SS","V55",1,48,null,null,"Alison Wilkinson","HRC","V45",1,51]
["Sarah Hopewell","WJ","V35",1,10,null,"Jane Wren","WJ","V55",1,23,null,null,"Peijie Zhu","BS","V45",1,40,null,null,"Shani Lewis","SS","V45",1,66,null,null,"Laura Prime","HRC","V45",1,54]
["Fieke Blackwell","HRC","S",1,11,null,"Lucy Dupuis","WJ","V45",1,24,null,null,"Lara Wheeldon","BS","V45",1,41,null,null,null,null,null,null,null,null,null,"Kate Babb","HRC","V55",1,55]
["Lucy Robinson","BS","V35",1,12,null,"Sue Taylor","WJ","V45",1,29,null,null,"Sarah Mackay","BS","V35",1,49,null,null,null,null,null,null,null,null,null,"Tracy Stratford","HRC","V35",1,58]
["Katrina Dobson","WJ","V35",1,13,null,"Pamela Wilson","WJ","V65",1,31,null,null,"Sarah Porter","BS","V45",1,50,null,null,null,null,null,null,null,null,null,"Teresa Stickland","HRC","V55",1,59]
["Anthea Francis","WJ","V45",1,14,null,"Sam Rowe","WJ","V55",1,32,null,null,"Fiona Liddell","BS","V55",1,56,null,null,null,null,null,null,null,null,null,"Selina Morgan","HRC","V35",1,61]
["Sandra Rust","HRC","V45",1,15,null,"Debbie Amies","WJ","V45",1,35,null,null,"Niki Champion","BS","V45",1,60,null,null,null,null,null,null,null,null,null,"Michelle Sheridan","HRC","V35",1,62]
["Flo Greatrix","SS","S",1,16,null,"Jennifer Evans","WJ","S",1,36,null,null,"Francesca Palmer","BS","V45",1,71,null,null,null,null,null,null,null,null,null,"Jane Evans","HRC","V55",1,67]
["Joanna Arscott","BS","V35",1,17,null,"Kimberly Mangleshot","WJ","V45",1,42,null,null,"Sarah Godfrey","BS","V35",1,73,null,null,null,null,null,null,null,null,null,"Sandra Westgate","HRC","V45",1,68]
["Paige Bircham","HRC","S",1,18,null,"Gemma Charville","WJ","V35",1,43,null,null,"Clare Gallagher","BS","V35",1,74]
["Sue Fracer","WJ","S",1,19,null,"Paula Gollop","WJ","V35",1,45]
["Emma Mulley","WJ","V35",1,20,null,"Olu Gooden","WJ","V55",1,47]
["Fiona Halls","SS","V45",1,21,null,"Carla Bell","WJ","V55",1,52]
["Fay Humphries","BS","S",1,22,null,"Anne Ramsden","WJ","V65",1,53]
["Jane Wren","WJ","V55",1,23,null,"Sarah Berry","WJ","V35",1,57]
["Lucy Dupuis","WJ","V45",1,24,null,"Wendy Reddaway","WJ","V55",1,63]
["Paula Beades","BS","V45",1,25,null,"Cate Camany","WJ","V55",1,64]
["Louise Cootes","HRC","V35",1,26,null,"Jeanette Collins","WJ","V55",1,65]
["Bekah Cranch","BS","S",1,27,null,"Jenny Venter","WJ","V65",1,69]
["Kate Holden","SS","V55",1,28,null,"Fiona Alder","WJ","V55",1,70]
["Sue Taylor","WJ","V45",1,29,null,"Jacqui Barnard","WJ","V55",1,72]
["Marie Hockley","BS","V55",1,30,null,"Margaret Waddingham","WJ","V65",1,75]
["Pamela Wilson","WJ","V65",1,31,null,"Claron Riviere","WJ","V65",1,76]
["Sam Rowe","WJ","V55",1,32,null,"Rosalind Hitchen","WJ","V55",1,77]
["Helen Howard","SS","V45",1,33,null,"Michelle Cross","WJ","V55",1,78]
["Emma Nixon","BS","V55",1,34]
["Debbie Amies","WJ","V45",1,35]
["Jennifer Evans","WJ","S",1,36,null,"Senior",null,null,null,null,null,null,"V35",null,null,null,null,null,null,"V45",null,null,null,null,null,null,"V55",null,null,null,null,null,null,"V65"]
["Gail Nicholls","HRC","V55",1,37,null,"Name","Club","Age Category","Claim","Overall Position","Category Position",null,"Name","Club","Age Category","Claim","Overall Position","Category Position",null,"Name","Club","Age Category","Claim","Overall Position","Category Position",null,"Name","Club","Age Category","Claim","Overall Position","Category Position",null,"Name","Club","Age Category","Claim","Overall Position","Category Position"]
["Kerry Mavris","HRC","V45",1,38,null,"Lucy Barnes","HRC","S",1,1,1,null,"Katy Woodward","WJ","V35",1,2,1,null,"Marianne Mitchell","WJ","V45",1,5,1,null,"Jane Wren","WJ","V55",1,23,1,null,"Pamela Wilson","WJ","V65",1,31,1]
["June Brennan","SS","V65",1,39,null,"Terri Wiley","HRC","S",1,3,2,null,"Elizabeth Bellinger","BS","V35",1,4,2,null,"Beverley McLees","WJ","V45",1,7,2,null,"Kate Holden","SS","V55",1,28,2,null,"June Brennan","SS","V65",1,39,2]
["Peijie Zhu","BS","V45",1,40,null,"Fieke Blackwell","HRC","S",1,11,3,null,"Jo Gladding","WJ","V35",1,6,3,null,"Zib Gotto","SS","V45",1,8,3,null,"Marie Hockley","BS","V55",1,30,3,null,"Anne Ramsden","WJ","V65",1,53,3]
["Lara Wheeldon","BS","V45",1,41,null,"Flo Greatrix","SS","S",1,16,4,null,"Sophie Barc","BS","V35",1,9,4,null,"Anthea Francis","WJ","V45",1,14,4,null,"Sam Rowe","WJ","V55",1,32,4,null,"Jenny Venter","WJ","V65",1,69,4]
["Kimberly Mangleshot","WJ","V45",1,42,null,"Paige Bircham","HRC","S",1,18,5,null,"Sarah Hopewell","WJ","V35",1,10,5,null,"Sandra Rust","HRC","V45",1,15,5,null,"Emma Nixon","BS","V55",1,34,5,null,"Margaret Waddingham","WJ","V65",1,75,5]
["Gemma Charville","WJ","V35",1,43,null,"Sue Fracer","WJ","S",1,19,6,null,"Lucy Robinson","BS","V35",1,12,6,null,"Fiona Halls","SS","V45",1,21,6,null,"Gail Nicholls","HRC","V55",1,37,6,null,"Claron Riviere","WJ","V65",1,76,6]
["Tina Hamilton","SS","V45",1,44,null,"Fay Humphries","BS","S",1,22,7,null,"Katrina Dobson","WJ","V35",1,13,7,null,"Lucy Dupuis","WJ","V45",1,24,7,null,"Olu Gooden","WJ","V55",1,47,7]
["Paula Gollop","WJ","V35",1,45,null,"Bekah Cranch","BS","S",1,27,8,null,"Joanna Arscott","BS","V35",1,17,8,null,"Paula Beades","BS","V45",1,25,8,null,"Margit Wendelberger James","SS","V55",1,48,8]
["Rachael Pearson","SS","V35",1,46,null,"Jennifer Evans","WJ","S",1,36,9,null,"Emma Mulley","WJ","V35",1,20,9,null,"Sue Taylor","WJ","V45",1,29,9,null,"Carla Bell","WJ","V55",1,52,9]
["Olu Gooden","WJ","V55",1,47,null,null,null,null,null,null,null,null,"Louise Cootes","HRC","V35",1,26,10,null,"Helen Howard","SS","V45",1,33,10,null,"Kate Babb","HRC","V55",1,55,10]
["Margit Wendelberger James","SS","V55",1,48,null,null,null,null,null,null,null,null,"Gemma Charville","WJ","V35",1,43,11,null,"Debbie Amies","WJ","V45",1,35,11,null,"Fiona Liddell","BS","V55",1,56,11]
["Sarah Mackay","BS","V35",1,49,null,null,null,null,null,null,null,null,"Paula Gollop","WJ","V35",1,45,12,null,"Kerry Mavris","HRC","V45",1,38,12,null,"Teresa Stickland","HRC","V55",1,59,12]
["Sarah Porter","BS","V45",1,50,null,null,null,null,null,null,null,null,"Rachael Pearson","SS","V35",1,46,13,null,"Peijie Zhu","BS","V45",1,40,13,null,"Wendy Reddaway","WJ","V55",1,63,13]
["Alison Wilkinson","HRC","V45",1,51,null,null,null,null,null,null,null,null,"Sarah Mackay","BS","V35",1,49,14,null,"Lara Wheeldon","BS","V45",1,41,14,null,"Cate Camany","WJ","V55",1,64,14]
["Carla Bell","WJ","V55",1,52,null,null,null,null,null,null,null,null,"Sarah Berry","WJ","V35",1,57,15,null,"Kimberly Mangleshot","WJ","V45",1,42,15,null,"Jeanette Collins","WJ","V55",1,65,15]
["Anne Ramsden","WJ","V65",1,53,null,null,null,null,null,null,null,null,"Tracy Stratford","HRC","V35",1,58,16,null,"Tina Hamilton","SS","V45",1,44,16,null,"Jane Evans","HRC","V55",1,67,16]
["Laura Prime","HRC","V45",1,54,null,null,null,null,null,null,null,null,"Selina Morgan","HRC","V35",1,61,17,null,"Sarah Porter","BS","V45",1,50,17,null,"Fiona Alder","WJ","V55",1,70,17]
["Kate Babb","HRC","V55",1,55,null,null,null,null,null,null,null,null,"Michelle Sheridan","HRC","V35",1,62,18,null,"Alison Wilkinson","HRC","V45",1,51,18,null,"Jacqui Barnard","WJ","V55",1,72,18]
["Fiona Liddell","BS","V55",1,56,null,null,null,null,null,null,null,null,"Sarah Godfrey","BS","V35",1,73,19,null,"Laura Prime","HRC","V45",1,54,19,null,"Rosalind Hitchen","WJ","V55",1,77,19]
["Sarah Berry","WJ","V35",1,57,null,null,null,null,null,null,null,null,"Clare Gallagher","BS","V35",1,74,20,null,"Niki Champion","BS","V45",1,60,20,null,"Michelle Cross","WJ","V55",1,78,20]
["Tracy Stratford","HRC","V35",1,58,null,null,null,null,null,null,null,null,null,null,null,null,null,null,null,"Shani Lewis","SS","V45",1,66,21]
["Teresa Stickland","HRC","V55",1,59,null,null,null,null,null,null,null,null,null,null,null,null,null,null,null,"Sandra Westgate","HRC","V45",1,68,22]
["Niki Champion","BS","V45",1,60,null,null,null,null,null,null,null,null,null,null,null,null,null,null,null,"Francesca Palmer","BS","V45",1,71,23]
["Selina Morgan","HRC","V35",1,61]
["Michelle Sheridan","HRC","V35",1,62]
["Wendy Reddaway","WJ","V55",1,63]
["Cate Camany","WJ","V55",1,64]
["Jeanette Collins","WJ","V55",1,65]
["Shani Lewis","SS","V45",1,66]
["Jane Evans","HRC","V55",1,67]
["Sandra Westgate","HRC","V45",1,68]
["Jenny Venter","WJ","V65",1,69]
["Fiona Alder","WJ","V55",1,70]
["Francesca Palmer","BS","V45",1,71]
["Jacqui Barnard","WJ","V55",1,72]
["Sarah Godfrey","BS","V35",1,73]
["Clare Gallagher","BS","V35",1,74]
["Margaret Waddingham","WJ","V65",1,75]
["Claron Riviere","WJ","V65",1,76]
["Rosalind Hitchen","WJ","V55",1,77]
["Michelle Cross","WJ","V55",1,78]

{"sheet":"Race 4-Men","index":11,"n_rows":74,"n_cols":40,"rows_kept":74,"cut":false,"hidden":false,"merged":[]}
["Overall",null,null,null,null,null,"Ware Joggers",null,null,null,null,null,null,"Bishop's Stortford",null,null,null,null,null,null,"Saffron Striders",null,null,null,null,null,null,"Harlow Running & Tri Club"]
["Name","Club","Age Category","Claim","Position",null,"Name","Club","Age Category","Claim","Position",null,null,"Name","Club","Age Category","Claim","Position",null,null,"Name","Club","Age Category","Claim","Position",null,null,"Name","Club","Age Category","Claim","Position",null,null,"Name","Club","Age Category","Claim","Position"]
["Michael Waddington","WJ","S",1,1,null,"Michael Waddington","WJ","S",1,1,1,null,"Samuel Pedley","BS","S",1,3,3,null,"Iain Henley","SS","V40",1,13,13,null,"Rob Lowe","HRC","V50",1,8,8]
["Oscar Bell","WJ","S",1,2,null,"Oscar Bell","WJ","S",1,2,2,null,"Matthew Ironside","BS","S",1,14,14,null,"Marco Arcidiacono","SS","V50",1,35,35,null,"Paskell Blackwell","HRC","V40",1,9,9]
["Samuel Pedley","BS","S",1,3,null,"Andrew Mynott","WJ","V40",1,4,4,null,"Ben Pickford","BS","V40",1,16,16,null,"David Martin","SS","V40",1,39,39,null,"Kirk Crudgington","HRC","V40",1,22,22]
["Andrew Mynott","WJ","V40",1,4,null,"Kevin Francis","WJ","V40",1,5,5,null,"Matt McRandal","BS","S",1,26,26,null,"Toby Lumbsden","SS","V60",1,41,41,null,"Martyn Coulter","HRC","S",1,24,24]
["Kevin Francis","WJ","V40",1,5,null,"Tom Porter","WJ","S",1,6,6,null,"Henry Ward","BS","S",1,28,28,null,"Nigel Coates","SS","V60",1,44,44,null,"Martin Westley","HRC","S",1,25,25]
["Tom Porter","WJ","S",1,6,null,"Will Breese","WJ","S",1,7,7,null,"Gary Jones","BS","V50",1,30,30,null,"Richard Balarkas","SS","V60",1,50,50,null,"Benjamin Usher","HRC","S",1,29,29]
["Will Breese","WJ","S",1,7,null,"Vincent Riviere","WJ","V40",1,10,10,null,"Dominic Mason","BS","V50",1,34,34,null,"Alan Jones","SS","V50",1,54,54,null,"Jon Steadman","HRC","V40",1,40,40]
["Rob Lowe","HRC","V50",1,8,null,"Mark Ford","WJ","S",1,11,11,null,"Richard Eddershaw","BS","V50",1,36,36,null,"Ben Wright","SS","S",1,61,61,null,"Alexis Ellington","HRC","V40",1,42,42]
["Paskell Blackwell","HRC","V40",1,9,null,"Matt Brown","WJ","S",1,12,null,null,"Peter Beatty","BS","V60",1,37,null,null,"Iain Rogers","SS","V50",1,62,null,null,"Chris Arnell","HRC","V40",1,48]
["Vincent Riviere","WJ","V40",1,10,null,"Lee Hembling","WJ","S",1,15,null,null,"Chris Chew","BS","V50",1,43,null,null,null,null,null,null,null,null,null,"Bobby Draper","HRC","V50",1,53]
["Mark Ford","WJ","S",1,11,null,"Iain McMurray","WJ","S",1,17,null,null,"Oliver Last","BS","V50",1,47,null,null,null,null,null,null,null,null,null,"Mark Unwin","HRC","V40",1,55]
["Matt Brown","WJ","S",1,12,null,"Nicholas Egginton","WJ","V40",1,18,null,null,"Matthieu Militon","BS","V40",1,65,null,null,null,null,null,null,null,null,null,"Miguel Luque","HRC","V50",1,57]
["Iain Henley","SS","V40",1,13,null,"Jamie Higgs","WJ","V40",1,19,null,null,"Ian Penson","BS","V50",1,69,null,null,null,null,null,null,null,null,null,"John Bull","HRC","V50",1,58]
["Matthew Ironside","BS","S",1,14,null,"Garth Morris","WJ","V60",1,20,null,null,null,null,null,null,null,null,null,null,null,null,null,null,null,null,"Gary Mead","HRC","V40",1,63]
["Lee Hembling","WJ","S",1,15,null,"Neil Bull","WJ","V40",1,21,null,null,null,null,null,null,null,null,null,null,null,null,null,null,null,null,"Alan Cootes","HRC","V60",1,64]
["Ben Pickford","BS","V40",1,16,null,"Johnny Nichols","WJ","S",1,23,null,null,null,null,null,null,null,null,null,null,null,null,null,null,null,null,"Sean Flynn","HRC","V60",1,70]
["Iain McMurray","WJ","S",1,17,null,"Will Caunce","WJ","S",1,27,null,null,null,null,null,null,null,null,null,null,null,null,null,null,null,null,"Mark Bentley","HRC","V50",1,74]
["Nicholas Egginton","WJ","V40",1,18,null,"Adam Watson","WJ","S",1,31,null,null,null,null,null,null,null,null,null,null,null,null,null,null,null,null,"Alan Wellbelove","HRC","V60",1,75]
["Jamie Higgs","WJ","V40",1,19,null,"Andy Kavanagh","WJ","S",1,32]
["Garth Morris","WJ","V60",1,20,null,"Paul Martin","WJ","V40",1,33]
["Neil Bull","WJ","V40",1,21,null,"Mark Sanz","WJ","V50",1,38]
["Kirk Crudgington","HRC","V40",1,22,null,"Andy Biggs","WJ","V40",1,45]
["Johnny Nichols","WJ","S",1,23,null,"John Hair","WJ","V50",1,49]
["Martyn Coulter","HRC","S",1,24,null,"Matt Earl","WJ","V40",1,51]
["Martin Westley","HRC","S",1,25,null,"Alan Taylor","WJ","V50",1,52]
["Matt McRandal","BS","S",1,26,null,"Peter Baker","WJ","V60",1,56]
["Will Caunce","WJ","S",1,27,null,"Alan Randall","WJ","V50",1,59]
["Henry Ward","BS","S",1,28,null,"Mark Cyl","WJ","V50",1,60]
["Benjamin Usher","HRC","S",1,29,null,"Alan Rafferty","WJ","V60",1,67]
["Gary Jones","BS","V50",1,30,null,"Simon Joyce","WJ","V50",1,68]
["Adam Watson","WJ","S",1,31,null,"Pascal McManmon","WJ","V60",1,71]
["Andy Kavanagh","WJ","S",1,32,null,"Matthew Stephens","WJ","S",1,72]
["Paul Martin","WJ","V40",1,33]
["Dominic Mason","BS","V50",1,34]
["Marco Arcidiacono","SS","V50",1,35,null,"Senior",null,null,null,null,null,null,"V40",null,null,null,null,null,null,"V50",null,null,null,null,null,null,"V60",null,null,null,null,null,null,"V70"]
["Richard Eddershaw","BS","V50",1,36,null,"Name","Club","Age Category","Claim","Overall Position","Category Position",null,"Name","Club","Age Category","Claim","Overall Position","Category Position",null,"Name","Club","Age Category","Claim","Overall Position","Category Position",null,"Name","Club","Age Category","Claim","Overall Position","Category Position",null,"Name","Club","Age Category","Claim","Overall Position","Category Position"]
["Peter Beatty","BS","V60",1,37,null,"Michael Waddington","WJ","S",1,1,1,null,"Andrew Mynott","WJ","V40",1,4,1,null,"Rob Lowe","HRC","V50",1,8,1,null,"Garth Morris","WJ","V60",1,20,1]
["Mark Sanz","WJ","V50",1,38,null,"Oscar Bell","WJ","S",1,2,2,null,"Kevin Francis","WJ","V40",1,5,2,null,"Gary Jones","BS","V50",1,30,2,null,"Peter Beatty","BS","V60",1,37,2]
["David Martin","SS","V40",1,39,null,"Samuel Pedley","BS","S",1,3,3,null,"Paskell Blackwell","HRC","V40",1,9,3,null,"Dominic Mason","BS","V50",1,34,3,null,"Toby Lumbsden","SS","V60",1,41,3]
["Jon Steadman","HRC","V40",1,40,null,"Tom Porter","WJ","S",1,6,4,null,"Vincent Riviere","WJ","V40",1,10,4,null,"Marco Arcidiacono","SS","V50",1,35,4,null,"Nigel Coates","SS","V60",1,44,4]
["Toby Lumbsden","SS","V60",1,41,null,"Will Breese","WJ","S",1,7,5,null,"Iain Henley","SS","V40",1,13,5,null,"Richard Eddershaw","BS","V50",1,36,5,null,"Richard Balarkas","SS","V60",1,50,5]
["Alexis Ellington","HRC","V40",1,42,null,"Mark Ford","WJ","S",1,11,6,null,"Ben Pickford","BS","V40",1,16,6,null,"Mark Sanz","WJ","V50",1,38,6,null,"Peter Baker","WJ","V60",1,56,6]
["Chris Chew","BS","V50",1,43,null,"Matt Brown","WJ","S",1,12,7,null,"Nicholas Egginton","WJ","V40",1,18,7,null,"Chris Chew","BS","V50",1,43,7,null,"Alan Cootes","HRC","V60",1,64,7]
["Nigel Coates","SS","V60",1,44,null,"Matthew Ironside","BS","S",1,14,8,null,"Jamie Higgs","WJ","V40",1,19,8,null,"Oliver Last","BS","V50",1,47,8,null,"Alan Rafferty","WJ","V60",1,67,8]
["Andy Biggs","WJ","V40",1,45,null,"Lee Hembling","WJ","S",1,15,9,null,"Neil Bull","WJ","V40",1,21,9,null,"John Hair","WJ","V50",1,49,9,null,"Sean Flynn","HRC","V60",1,70,9]
["Oliver Last","BS","V50",1,47,null,"Iain McMurray","WJ","S",1,17,10,null,"Kirk Crudgington","HRC","V40",1,22,10,null,"Alan Taylor","WJ","V50",1,52,10,null,"Pascal McManmon","WJ","V60",1,71,10]
["Chris Arnell","HRC","V40",1,48,null,"Johnny Nichols","WJ","S",1,23,11,null,"Paul Martin","WJ","V40",1,33,11,null,"Bobby Draper","HRC","V50",1,53,11,null,"Alan Wellbelove","HRC","V60",1,75,11]
["John Hair","WJ","V50",1,49,null,"Martyn Coulter","HRC","S",1,24,12,null,"David Martin","SS","V40",1,39,12,null,"Alan Jones","SS","V50",1,54,12]
["Richard Balarkas","SS","V60",1,50,null,"Martin Westley","HRC","S",1,25,13,null,"Jon Steadman","HRC","V40",1,40,13,null,"Miguel Luque","HRC","V50",1,57,13]
["Matt Earl","WJ","V40",1,51,null,"Matt McRandal","BS","S",1,26,14,null,"Alexis Ellington","HRC","V40",1,42,14,null,"John Bull","HRC","V50",1,58,14]
["Alan Taylor","WJ","V50",1,52,null,"Will Caunce","WJ","S",1,27,15,null,"Andy Biggs","WJ","V40",1,45,15,null,"Alan Randall","WJ","V50",1,59,15]
["Bobby Draper","HRC","V50",1,53,null,"Henry Ward","BS","S",1,28,16,null,"Chris Arnell","HRC","V40",1,48,16,null,"Mark Cyl","WJ","V50",1,60,16]
["Alan Jones","SS","V50",1,54,null,"Benjamin Usher","HRC","S",1,29,17,null,"Matt Earl","WJ","V40",1,51,17,null,"Iain Rogers","SS","V50",1,62,17]
["Mark Unwin","HRC","V40",1,55,null,"Adam Watson","WJ","S",1,31,18,null,"Mark Unwin","HRC","V40",1,55,18,null,"Simon Joyce","WJ","V50",1,68,18]
["Peter Baker","WJ","V60",1,56,null,"Andy Kavanagh","WJ","S",1,32,19,null,"Gary Mead","HRC","V40",1,63,19,null,"Ian Penson","BS","V50",1,69,19]
["Miguel Luque","HRC","V50",1,57,null,"Ben Wright","SS","S",1,61,20,null,"Matthieu Militon","BS","V40",1,65,20,null,"Mark Bentley","HRC","V50",1,74,20]
["John Bull","HRC","V50",1,58,null,"Matthew Stephens","WJ","S",1,72,21]
["Alan Randall","WJ","V50",1,59]
["Mark Cyl","WJ","V50",1,60]
["Ben Wright","SS","S",1,61]
["Iain Rogers","SS","V50",1,62]
["Gary Mead","HRC","V40",1,63]
["Alan Cootes","HRC","V60",1,64]
["Matthieu Militon","BS","V40",1,65]
["Alan Rafferty","WJ","V60",1,67]
["Simon Joyce","WJ","V50",1,68]
["Ian Penson","BS","V50",1,69]
["Sean Flynn","HRC","V60",1,70]
["Pascal McManmon","WJ","V60",1,71]
["Matthew Stephens","WJ","S",1,72]
["Mark Bentley","HRC","V50",1,74]
["Alan Wellbelove","HRC","V60",1,75]

{"sheet":"Race 4-Ladies","index":12,"n_rows":56,"n_cols":40,"rows_kept":56,"cut":false,"hidden":false,"merged":[]}
["Overall",null,null,null,null,null,"Ware Joggers",null,null,null,null,null,null,"Bishop's Stortford",null,null,null,null,null,null,"Saffron Striders",null,null,null,null,null,null,"Harlow Running & Tri Club"]
["Name","Club","Age Category","Claim","Position",null,"Name","Club","Age Category","Claim","Position",null,null,"Name","Club","Age Category","Claim","Position",null,null,"Name","Club","Age Category","Claim","Position",null,null,"Name","Club","Age Category","Claim","Position",null,null,"Name","Club","Age Category","Claim","Position"]
["Lucy Barnes","HRC","S",1,1,null,"Katy Woodward","WJ","V35",1,2,2,null,"Elizabeth Bellinger","BS","V35",1,5,5,null,"Zib Gotto","SS","V45",1,13,13,null,"Lucy Barnes","HRC","S",1,1,1]
["Katy Woodward","WJ","V35",1,2,null,"Harriet Kealy","WJ","S",null,4,4,null,"Joanna Jurd","BS","V35",1,9,9,null,"Kate Holden","SS","V55",1,26,26,null,"Terri Wiley","HRC","S",1,3,3]
["Terri Wiley","HRC","S",1,3,null,"Marianne Mitchell","WJ","V45",1,7,7,null,"Andrea Thorpe","BS","V45",1,18,18,null,"Charlotte Teall","SS","V35",1,31,31,null,"Catherine Ridge","HRC","V35",1,6,6]
["Harriet Kealy","WJ","S",null,4,null,"Jo Gladding","WJ","V35",1,8,8,null,"Julie Pagram","BS","V45",1,21,21,null,"Rachael Pearson","SS","V35",1,36,36,null,"Fieke Blackwell","HRC","S",1,10,10]
["Elizabeth Bellinger","BS","V35",1,5,null,"Beverley McLees","WJ","V45",1,11,11,null,"Emily Warrington","BS","S",1,28,28,null,"June Brennan","SS","V65",1,37,37,null,"Sandra Rust","HRC","V45",1,15,15]
["Catherine Ridge","HRC","V35",1,6,null,"Katrina Dobson","WJ","V35",1,12,12,null,"Emma Nixon","BS","V55",1,32,32,null,"Lisa Plumb","SS","V45",1,39,39,null,"Paige Bircham","HRC","S",1,19,19]
["Marianne Mitchell","WJ","V45",1,7,null,"Sarah Hopewell","WJ","V35",1,14,14,null,"Ellen Brooks","BS","V35",1,34,34,null,null,null,null,null,null,null,null,"Louise Cootes","HRC","V35",1,20,20]
["Jo Gladding","WJ","V35",1,8,null,"Lucy Dupuis","WJ","V45",1,16,16,null,"Sarah Mackay","BS","V35",1,40,40,null,null,null,null,null,null,null,null,"Linda Helm-Manley","HRC","V55",1,22,22]
["Joanna Jurd","BS","V35",1,9,null,"Anthea Francis","WJ","V45",1,17,null,null,"Niki Champion","BS","V45",1,44,null,null,null,null,null,null,null,null,null,"Kerry Mavris","HRC","V45",1,23]
["Fieke Blackwell","HRC","S",1,10,null,"Jane Wren","WJ","V55",1,24,null,null,"Jilly Palmer","BS","V55",1,48,null,null,null,null,null,null,null,null,null,"Gail Nicholls","HRC","V55",1,30]
["Beverley McLees","WJ","V45",1,11,null,"Lisa Roberts","WJ","V45",1,25,null,null,"Fay Dodgen","BS","V45",1,51,null,null,null,null,null,null,null,null,null,"Laura Prime","HRC","V45",1,38]
["Katrina Dobson","WJ","V35",1,12,null,"Sam Rowe","WJ","V55",1,27,null,null,null,null,null,null,null,null,null,null,null,null,null,null,null,null,"Kate Babb","HRC","V55",1,41]
["Zib Gotto","SS","V45",1,13,null,"Pamela Wilson","WJ","V65",1,29,null,null,null,null,null,null,null,null,null,null,null,null,null,null,null,null,"Michelle Sheridan","HRC","V35",1,43]
["Sarah Hopewell","WJ","V35",1,14,null,"Fiona Smith","WJ","S",1,33,null,null,null,null,null,null,null,null,null,null,null,null,null,null,null,null,"Sandra Westgate","HRC","V45",1,45]
["Sandra Rust","HRC","V45",1,15,null,"Kimberly Mangleshot","WJ","V45",1,35,null,null,null,null,null,null,null,null,null,null,null,null,null,null,null,null,"Selina Morgan","HRC","V35",1,46]
["Lucy Dupuis","WJ","V45",1,16,null,"Tracy Brennan","WJ","V45",1,42,null,null,null,null,null,null,null,null,null,null,null,null,null,null,null,null,"Teresa Stickland","HRC","V55",1,47]
["Anthea Francis","WJ","V45",1,17,null,"Lynsay Evans","WJ","V45",1,52,null,null,null,null,null,null,null,null,null,null,null,null,null,null,null,null,"Elizabeth Roberts","HRC","S",1,49]
["Andrea Thorpe","BS","V45",1,18,null,"Rosalind Hitchen","WJ","V55",1,53,null,null,null,null,null,null,null,null,null,null,null,null,null,null,null,null,"Lisa Brett","HRC","V45",1,50]
["Paige Bircham","HRC","S",1,19,null,"Claron Riviere","WJ","V65",1,54]
["Louise Cootes","HRC","V35",1,20]
["Julie Pagram","BS","V45",1,21]
["Linda Helm-Manley","HRC","V55",1,22,null,"Senior",null,null,null,null,null,null,"V35",null,null,null,null,null,null,"V45",null,null,null,null,null,null,"V55",null,null,null,null,null,null,"V65"]
["Kerry Mavris","HRC","V45",1,23,null,"Name","Club","Age Category","Claim","Overall Position","Category Position",null,"Name","Club","Age Category","Claim","Overall Position","Category Position",null,"Name","Club","Age Category","Claim","Overall Position","Category Position",null,"Name","Club","Age Category","Claim","Overall Position","Category Position",null,"Name","Club","Age Category","Claim","Overall Position","Category Position"]
["Jane Wren","WJ","V55",1,24,null,"Lucy Barnes","HRC","S",1,1,1,null,"Katy Woodward","WJ","V35",1,2,1,null,"Marianne Mitchell","WJ","V45",1,7,1,null,"Linda Helm-Manley","HRC","V55",1,22,1,null,"Pamela Wilson","WJ","V65",1,29,1]
["Lisa Roberts","WJ","V45",1,25,null,"Terri Wiley","HRC","S",1,3,2,null,"Elizabeth Bellinger","BS","V35",1,5,2,null,"Beverley McLees","WJ","V45",1,11,2,null,"Jane Wren","WJ","V55",1,24,2,null,"June Brennan","SS","V65",1,37,2]
["Kate Holden","SS","V55",1,26,null,"Harriet Kealy","WJ","S",null,4,3,null,"Catherine Ridge","HRC","V35",1,6,3,null,"Zib Gotto","SS","V45",1,13,3,null,"Kate Holden","SS","V55",1,26,3,null,"Claron Riviere","WJ","V65",1,54,3]
["Sam Rowe","WJ","V55",1,27,null,"Fieke Blackwell","HRC","S",1,10,4,null,"Jo Gladding","WJ","V35",1,8,4,null,"Sandra Rust","HRC","V45",1,15,4,null,"Sam Rowe","WJ","V55",1,27,4]
["Emily Warrington","BS","S",1,28,null,"Paige Bircham","HRC","S",1,19,5,null,"Joanna Jurd","BS","V35",1,9,5,null,"Lucy Dupuis","WJ","V45",1,16,5,null,"Gail Nicholls","HRC","V55",1,30,5]
["Pamela Wilson","WJ","V65",1,29,null,"Emily Warrington","BS","S",1,28,6,null,"Katrina Dobson","WJ","V35",1,12,6,null,"Anthea Francis","WJ","V45",1,17,6,null,"Emma Nixon","BS","V55",1,32,6]
["Gail Nicholls","HRC","V55",1,30,null,"Fiona Smith","WJ","S",1,33,7,null,"Sarah Hopewell","WJ","V35",1,14,7,null,"Andrea Thorpe","BS","V45",1,18,7,null,"Kate Babb","HRC","V55",1,41,7]
["Charlotte Teall","SS","V35",1,31,null,"Elizabeth Roberts","HRC","S",1,49,8,null,"Louise Cootes","HRC","V35",1,20,8,null,"Julie Pagram","BS","V45",1,21,8,null,"Teresa Stickland","HRC","V55",1,47,8]
["Emma Nixon","BS","V55",1,32,null,null,null,null,null,null,null,null,"Charlotte Teall","SS","V35",1,31,9,null,"Kerry Mavris","HRC","V45",1,23,9,null,"Jilly Palmer","BS","V55",1,48,9]
["Fiona Smith","WJ","S",1,33,null,null,null,null,null,null,null,null,"Ellen Brooks","BS","V35",1,34,10,null,"Lisa Roberts","WJ","V45",1,25,10,null,"Rosalind Hitchen","WJ","V55",1,53,10]
["Ellen Brooks","BS","V35",1,34,null,null,null,null,null,null,null,null,"Rachael Pearson","SS","V35",1,36,11,null,"Kimberly Mangleshot","WJ","V45",1,35,11]
["Kimberly Mangleshot","WJ","V45",1,35,null,null,null,null,null,null,null,null,"Sarah Mackay","BS","V35",1,40,12,null,"Laura Prime","HRC","V45",1,38,12]
["Rachael Pearson","SS","V35",1,36,null,null,null,null,null,null,null,null,"Michelle Sheridan","HRC","V35",1,43,13,null,"Lisa Plumb","SS","V45",1,39,13]
["June Brennan","SS","V65",1,37,null,null,null,null,null,null,null,null,"Selina Morgan","HRC","V35",1,46,14,null,"Tracy Brennan","WJ","V45",1,42,14]
["Laura Prime","HRC","V45",1,38,null,null,null,null,null,null,null,null,null,null,null,null,null,null,null,"Niki Champion","BS","V45",1,44,15]
["Lisa Plumb","SS","V45",1,39,null,null,null,null,null,null,null,null,null,null,null,null,null,null,null,"Sandra Westgate","HRC","V45",1,45,16]
["Sarah Mackay","BS","V35",1,40,null,null,null,null,null,null,null,null,null,null,null,null,null,null,null,"Lisa Brett","HRC","V45",1,50,17]
["Kate Babb","HRC","V55",1,41,null,null,null,null,null,null,null,null,null,null,null,null,null,null,null,"Fay Dodgen","BS","V45",1,51,18]
["Tracy Brennan","WJ","V45",1,42,null,null,null,null,null,null,null,null,null,null,null,null,null,null,null,"Lynsay Evans","WJ","V45",1,52,19]
["Michelle Sheridan","HRC","V35",1,43]
["Niki Champion","BS","V45",1,44]
["Sandra Westgate","HRC","V45",1,45]
["Selina Morgan","HRC","V35",1,46]
["Teresa Stickland","HRC","V55",1,47]
["Jilly Palmer","BS","V55",1,48]
["Elizabeth Roberts","HRC","S",1,49]
["Lisa Brett","HRC","V45",1,50]
["Fay Dodgen","BS","V45",1,51]
["Lynsay Evans","WJ","V45",1,52]
["Rosalind Hitchen","WJ","V55",1,53]
["Claron Riviere","WJ","V65",1,54]